Workbook

Sheet 2018 DUOS Ex GST
B2: Schedule of Indicative Distribution Use of System (DUOS) Tariffs: 1 January 2018 (GST Exclusive)
E4: Network Tariff Component | R4: Eligibility (consumption/ category) | T4: Minimum Chargeable Rolling Demand | U4: Minimum Chargeable Demand
B5: Description | C5: Tariff Code | D5: PFIT (F) TFIT (T) | E5: Standing Charge (c/day) | F5: Summer Peak Energy (c/kWh) | G5: Non Summer Peak Energy Block 1 (c/kWh) | H5: Non Summer Peak Energy Block 2 (c/kWh) | I5: Summer Shoulder Energy (c/kWh) | J5: Non Summer Shoulder Energy (c/kWh) | K5: Off Peak Energy (c/kWh) | L5: Rolling Peak Demand c/kVA/day | M5: Summer Demand Incentive Charge c/kW/day or c/kVA/day | N5: Summer Demand Max kW c/KW/day | O5: Non-summer Demand Max kW c/KW/day | P5: Summer Demand Overrun Max kW c/KW/day | Q5: Non-summer Demand Overrun Max kW c/KW/day | R5: kVA | S5: MWh pa | T5: kVA | U5: kW
B6: Low voltage small 1 rate | C6: LVS1R | D6: F | E6: 6.865 | F6: 8.465 | G6: 5.449 | H6: 0 | I6: 0 | J6: 0 | K6: 0 | L6: 0 | M6: 0 | N6: 0 | O6: 0 | P6: 0 | Q6: 0 | R6: NA | S6: <20
B7: Low voltage small 2 rate* | C7: LVS2R* | E7: 14.02 | F7: 10.063 | G7: 7.632 | H7: 0 | I7: 0 | J7: 0 | K7: 1.745 | L7: 0 | M7: 0 | N7: 0 | O7: 0 | P7: 0 | Q7: 0
B8: Dedicated circuit** | C8: LVDed** | E8: 0 | F8: 0 | G8: 0 | H8: 0 | I8: 0 | J8: 0 | K8: 1.931 | L8: 0 | M8: 0 | N8: 0 | O8: 0 | P8: 0 | Q8: 0 | R8: NA | S8: <20 (on LVS1R)
B9: Unmetered supplies | C9: UnMet | E9: 0 | F9: 8.459 | G9: 6.188 | H9: 0 | I9: 0 | J9: 0 | K9: 1.525 | L9: 0 | M9: 0 | N9: 0 | O9: 0 | P9: 0 | Q9: 0
B10: Winter Energy Tariff* | C10: WET2Step* | E10: 8.841 | F10: 6.593 | G10: 4.885 | H10: 1.831 | I10: 0 | J10: 0 | K10: 0 | L10: 0 | M10: 0 | N10: 0 | O10: 0 | P10: 0 | Q10: 0
B11: Reverse cycle airconditioning time of use* | C11: RCACkWTOU* | E11: 0 | F11: 0 | G11: 0 | H11: 0 | I11: 0 | J11: 0 | K11: 0 | L11: 0 | M11: 0 | N11: 0 | O11: 0 | P11: 0 | Q11: 0
B12: Low voltage medium 1 rate | C12: LVM1R | D12: F | E12: 11.652 | F12: 10.241 | G12: 6.391 | H12: 0 | I12: 0 | J12: 0 | K12: 0 | L12: 0 | M12: 0 | N12: 0 | O12: 0 | P12: 0 | Q12: 0 | R12: NA | S12: >20 & <160
B13: Low voltage medium 2 rate 5 day* | C13: LVM2R5D* | E13: 22.303 | F13: 10.83 | G13: 8.116 | H13: 0 | I13: 0 | J13: 0 | K13: 2.022 | L13: 0 | M13: 0 | N13: 0 | O13: 0 | P13: 0 | Q13: 0
B14: Low voltage medium 2 rate 7 day* | C14: LVM2R7D* | E14: 23.742 | F14: 10.307 | G14: 7.981 | H14: 0 | I14: 0 | J14: 0 | K14: 1.88 | L14: 0 | M14: 0 | N14: 0 | O14: 0 | P14: 0 | Q14: 0
B15: Low voltage KW time of use* | C15: LVkWTOU* | E15: 0 | F15: 8.913 | G15: 5.222 | H15: 0 | I15: 0 | J15: 0 | K15: 2.075 | L15: 0 | M15: 42.68 | N15: 0 | O15: 0 | P15: 0 | Q15: 0
B16: Low voltage KW time of use - HOT* | C16: LVkWTOUH* | E16: 0 | F16: 7.76 | G16: 5.965 | H16: 0 | I16: 0 | J16: 0 | K16: 1.753 | L16: 0 | M16: 68.291 | N16: 0 | O16: 0 | P16: 0 | Q16: 0
B17: Low voltage large 1 rate* | C17: LVL1R* | E17: 13.641 | F17: 6.247 | G17: 4.929 | H17: 0 | I17: 0 | J17: 0 | K17: 0 | L17: 0 | M17: 0 | N17: 0 | O17: 0 | P17: 0 | Q17: 0
B18: Low voltage large 2 rate* | C18: LVL2R* | E18: 19.678 | F18: 9.78 | G18: 7.776 | H18: 0 | I18: 0 | J18: 0 | K18: 1.861 | L18: 0 | M18: 0 | N18: 0 | O18: 0 | P18: 0 | Q18: 0
B19: Low voltage large KVA time of use | C19: LVkVATOU | E19: 0 | F19: 1.406 | G19: 1.192 | H19: 0 | I19: 0 | J19: 0 | K19: 1.18 | L19: 14.196 | M19: 21.178 | N19: 0 | O19: 0 | P19: 0 | Q19: 0 | R19: >150 | S19: >400 | T19: 150
B20: Low voltage large KVA time of use - HOT* | C20: LVkVATOUH* | E20: 0 | F20: 0 | G20: 0 | H20: 0 | I20: 0 | J20: 0 | K20: 0 | L20: 0 | M20: 0 | N20: 0 | O20: 0 | P20: 0 | Q20: 0 | T20: 150
B21: High voltage KVA time of use | C21: HVkVATOU | E21: 0 | F21: 0.843 | G21: 0.744 | H21: 0 | I21: 0 | J21: 0 | K21: 0.731 | L21: 8.591 | M21: 11.798 | N21: 0 | O21: 0 | P21: 0 | Q21: 0 | R21: >150 | S21: >400 | T21: 1150
B22: High voltage KVA time of use - HOT* | C22: HVkVATOUH* | E22: 0 | F22: 0 | G22: 0 | H22: 0 | I22: 0 | J22: 0 | K22: 0 | L22: 0 | M22: 0 | N22: 0 | O22: 0 | P22: 0 | Q22: 0 | T22: 1150
B23: Subtransmission KVA time of use* | C23: SubTkVATOU* | E23: 0 | F23: 0.48 | G23: 0.374 | H23: 0 | I23: 0 | J23: 0 | K23: 0.324 | L23: 0.841 | M23: 1.232 | N23: 0 | O23: 0 | P23: 0 | Q23: 0 | T23: 11100
B24: Time of Day | C24: TOD | D24: F | E24: 6.53 | F24: 15.698 | G24: 9.252 | H24: 0 | I24: 4.424 | J24: 3.259 | K24: 3.027 | L24: 0 | M24: 0 | N24: 0 | O24: 0 | P24: 0 | Q24: 0 | R24: NA | S24: <20
B25: Time of Use | C25: TOU | D25: F | E25: 0 | F25: 9.646 | G25: 5.86 | H25: 0 | I25: 0 | J25: 0 | K25: 2.829 | L25: 0 | M25: 41.891 | N25: 0 | O25: 0 | P25: 0 | Q25: 0 | R25: NA | S25: >20 & <160
B26: Time of Day 9pm off-peak | C26: TOD9 | D26: F | E26: 6.774 | F26: 17.7 | G26: 11 | H26: 0 | I26: 5.487 | J26: 4.408 | K26: 4.193 | L26: 0 | M26: 0 | N26: 0 | O26: 0 | P26: 0 | Q26: 0 | R26: NA | S26: <20
B27: Time of Day Flexible | C27: TODFLEX | D27: F | E27: 7.295 | F27: 17.414 | G27: 9.996 | H27: 0 | I27: 4.729 | J27: 4.729 | K27: 4.009 | L27: 0 | M27: 0 | N27: 0 | O27: 0 | P27: 0 | Q27: 0 | R27: Residential Customer
B28: Low voltage KW 1 rate | C28: RESKW1R | D28: F | E28: 0 | F28: 2.712 | G28: 2.712 | H28: 2.712 | I28: 2.712 | J28: 2.712 | K28: 2.712 | L28: 0 | M28: 0 | N28: 26.13 | O28: 10.311 | P28: 0 | Q28: 0 | R28: NA | S28: <20 | U28: 1.5
B29: Low Voltage Medium kW Time of Use (Opt-in) | C29: LVMKWTOU | D29: F | E29: 0 | F29: 3.686 | G29: 3.686 | H29: 3.686 | I29: 3.686 | J29: 3.686 | K29: 3.686 | L29: 0 | M29: 0 | N29: 30.492 | O29: 20.328 | P29: 0 | Q29: 0 | R29: NA | S29: >20 & <400 | U29: 1.5
B30: Low Voltage Medium kW 1 rate (Mandatory) | C30: LVMKW1R | D30: F | E30: 0 | F30: 5.657 | G30: 5.657 | H30: 5.657 | I30: 5.657 | J30: 5.657 | K30: 5.657 | L30: 0 | M30: 0 | N30: 18.955 | O30: 12.636 | P30: 0 | Q30: 0 | R30: NA | S30: >40 & <400 | U30: 1.5
B33: * Tariff closed to premises not already taking supply under this tariff and new connections.
B34: ** Tariff only available in conjunction with the LVS1R tariff for new connections.
B35: Summer peak energy rates apply for period 1st November to 31st March (except TODFLEX which follows daylight savings periods) & RESKWTOU which applies from 1st December to 31st March.
B36: Non-summer peak energy rates apply for period 1st April to 31st October (except TODFLEX which follows non-daylight savings periods) & RESKWTOU which applies from 1st April to 30th November.
B37: PFIT (Premium Feed-In Tariff) is defined by an “F” added to the front of an existing distribution tariff ie. FTOD. The PFIT tariffs are closed to new connections.

Sheet 2018 TUOS Ex GST
B2: Schedule of Indicative Transmission Use of System (TUOS) Tariffs: 1 January 2018 (GST Exclusive)
E4: Network Tariff Component | R4: Eligibility (consumption/ category) | T4: Minimum Chargeable Rolling Demand | U4: Minimum Chargeable Demand
B5: Description | C5: Tariff Code | D5: PFIT (F) TFIT (T) | E5: Standing Charge (c/day) | F5: Summer Peak Energy (c/kWh) | G5: Non Summer Peak Energy Block 1 (c/kWh) | H5: Non Summer Peak Energy Block 2 (c/kWh) | I5: Summer Shoulder Energy (c/kWh) | J5: Non Summer Shoulder Energy (c/kWh) | K5: Off Peak Energy (c/kWh) | L5: Rolling Peak Demand c/kVA/day | M5: Summer Demand Incentive Charge c/kW/day or c/kVA/day | N5: Summer Demand Max kW c/KW/day | O5: Non-summer Demand Max kW c/KW/day | P5: Summer Demand Overrun Max kW c/KW/day | Q5: Non-summer Demand Overrun Max kW c/KW/day | R5: kVA | S5: MWh pa | T5: kVA | U5: kW
B6: Low voltage small 1 rate | C6: LVS1R | D6: F | E6: 0 | F6: 1.755 | G6: 1.467 | H6: 0 | I6: 0 | J6: 0 | K6: 0 | L6: 0 | M6: 0 | N6: 0 | O6: 0 | P6: 0 | Q6: 0 | R6: NA | S6: <20
B7: Low voltage small 2 rate* | C7: LVS2R* | E7: 0 | F7: 2.947 | G7: 2.359 | H7: 0 | I7: 0 | J7: 0 | K7: 0 | L7: 0 | M7: 0 | N7: 0 | O7: 0 | P7: 0 | Q7: 0
B8: Dedicated circuit** | C8: LVDed** | E8: 0 | F8: 0 | G8: 0 | H8: 0 | I8: 0 | J8: 0 | K8: 0 | L8: 0 | M8: 0 | N8: 0 | O8: 0 | P8: 0 | Q8: 0 | R8: NA | S8: <20 (on LVS1R)
B9: Unmetered supplies | C9: UnMet | E9: 0 | F9: 2.761 | G9: 2.207 | H9: 0 | I9: 0 | J9: 0 | K9: 0 | L9: 0 | M9: 0 | N9: 0 | O9: 0 | P9: 0 | Q9: 0
B10: Winter Energy Tariff* | C10: WET2Step* | E10: 0 | F10: 1.964 | G10: 1.571 | H10: 1.571 | I10: 0 | J10: 0 | K10: 0 | L10: 0 | M10: 0 | N10: 0 | O10: 0 | P10: 0 | Q10: 0
B11: Reverse cycle airconditioning time of use* | C11: RCACkWTOU* | E11: 0 | F11: 0 | G11: 0 | H11: 0 | I11: 0 | J11: 0 | K11: 0 | L11: 0 | M11: 0 | N11: 0 | O11: 0 | P11: 0 | Q11: 0
B12: Low voltage medium 1 rate | C12: LVM1R | D12: F | E12: 0 | F12: 2.062 | G12: 1.647 | H12: 0 | I12: 0 | J12: 0 | K12: 0 | L12: 0 | M12: 0 | N12: 0 | O12: 0 | P12: 0 | Q12: 0 | R12: NA | S12: >20 & <160
B13: Low voltage medium 2 rate 5 day* | C13: LVM2R5D* | E13: 0 | F13: 1.786 | G13: 1.428 | H13: 0 | I13: 0 | J13: 0 | K13: 0 | L13: 0 | M13: 0 | N13: 0 | O13: 0 | P13: 0 | Q13: 0
B14: Low voltage medium 2 rate 7 day* | C14: LVM2R7D* | E14: 0 | F14: 2.126 | G14: 1.702 | H14: 0 | I14: 0 | J14: 0 | K14: 0 | L14: 0 | M14: 0 | N14: 0 | O14: 0 | P14: 0 | Q14: 0
B15: Low voltage KW time of use* | C15: LVkWTOU* | E15: 0 | F15: 1.654 | G15: 1.323 | H15: 0 | I15: 0 | J15: 0 | K15: 0 | L15: 0 | M15: 7.715 | N15: 0 | O15: 0 | P15: 0 | Q15: 0
B16: Low voltage KW time of use - HOT* | C16: LVkWTOUH* | E16: 0 | F16: 0.905 | G16: 0.723 | H16: 0 | I16: 0 | J16: 0 | K16: 0 | L16: 0 | M16: 8.108 | N16: 0 | O16: 0 | P16: 0 | Q16: 0
B17: Low voltage large 1 rate* | C17: LVL1R* | E17: 0 | F17: 2.056 | G17: 1.643 | H17: 0 | I17: 0 | J17: 0 | K17: 0 | L17: 0 | M17: 0 | N17: 0 | O17: 0 | P17: 0 | Q17: 0
B18: Low voltage large 2 rate* | C18: LVL2R* | E18: 0 | F18: 1.58 | G18: 1.266 | H18: 0 | I18: 0 | J18: 0 | K18: 0 | L18: 0 | M18: 0 | N18: 0 | O18: 0 | P18: 0 | Q18: 0
B19: Low voltage large KVA time of use | C19: LVkVATOU | E19: 0 | F19: 0.902 | G19: 0.723 | H19: 0 | I19: 0 | J19: 0 | K19: 0 | L19: 3.679 | M19: 5.029 | N19: 0 | O19: 0 | P19: 0 | Q19: 0 | R19: >150 | S19: >400 | T19: 150
B20: Low voltage large KVA time of use - HOT* | C20: LVkVATOUH* | E20: 0 | F20: 0 | G20: 0 | H20: 0 | I20: 0 | J20: 0 | K20: 0 | L20: 0 | M20: 0 | N20: 0 | O20: 0 | P20: 0 | Q20: 0 | T20: 150
B21: High voltage KVA time of use | C21: HVkVATOU | E21: 0 | F21: 0.633 | G21: 0.507 | H21: 0 | I21: 0 | J21: 0 | K21: 0 | L21: 4.213 | M21: 4.422 | N21: 0 | O21: 0 | P21: 0 | Q21: 0 | R21: >150 | S21: >400 | T21: 1150
B22: High voltage KVA time of use - HOT* | C22: HVkVATOUH* | E22: 0 | F22: 0 | G22: 0 | H22: 0 | I22: 0 | J22: 0 | K22: 0 | L22: 0 | M22: 0 | N22: 0 | O22: 0 | P22: 0 | Q22: 0 | T22: 1150
B23: Subtransmission KVA time of use* | C23: SubTkVATOU* | E23: 0 | F23: 0.427 | G23: 0.344 | H23: 0 | I23: 0 | J23: 0 | K23: 0 | L23: 3.029 | M23: 3.675 | N23: 0 | O23: 0 | P23: 0 | Q23: 0 | T23: 11100
B24: Time of Day | C24: TOD | D24: F | E24: 0 | F24: 2.843 | G24: 2.413 | H24: 0 | I24: 2.413 | J24: 2.131 | K24: 0 | L24: 0 | M24: 0 | N24: 0 | O24: 0 | P24: 0 | Q24: 0 | R24: NA | S24: <20
B25: Time of Use | C25: TOU | D25: F | E25: 0 | F25: 2.112 | G25: 0.97 | H25: 0 | I25: 0 | J25: 0 | K25: 0 | L25: 0 | M25: 5.534 | N25: 0 | O25: 0 | P25: 0 | Q25: 0 | R25: NA | S25: >20 & <160
B26: Time of Day 9pm off-peak | C26: TOD9 | D26: F | E26: 0 | F26: 3.815 | G26: 3.547 | H26: 0 | I26: 3.547 | J26: 3.37 | K26: 0 | L26: 0 | M26: 0 | N26: 0 | O26: 0 | P26: 0 | Q26: 0 | R26: NA | S26: <20
B27: Time of Day Flexible | C27: TODFLEX | D27: F | E27: 0 | F27: 3.226 | G27: 3.009 | H27: 0 | I27: 1.612 | J27: 1.422 | K27: 0 | L27: 0 | M27: 0 | N27: 0 | O27: 0 | P27: 0 | Q27: 0 | R27: Residential Customer
B28: Low voltage KW 1 rate | C28: RESKW1R | D28: F | E28: 0 | F28: 0.593 | G28: 0.593 | H28: 0.593 | I28: 0.593 | J28: 0.593 | K28: 0.593 | L28: 0 | M28: 0 | N28: 4.441 | O28: 2.887 | P28: 0 | Q28: 0 | R28: NA | S28: <20 | U28: 1.5
B29: Low Voltage Medium kW Time of Use (Opt-in) | C29: LVMKWTOU | D29: F | E29: 0 | F29: 0.75 | G29: 0.75 | H29: 0.75 | I29: 0.75 | J29: 0.75 | K29: 0.75 | L29: 0 | M29: 0 | N29: 6.198 | O29: 4.132 | P29: 0 | Q29: 0 | R29: NA | S29: >20 & <400 | U29: 1.5
B30: Low Voltage Medium kW 1 rate (Mandatory) | C30: LVMKW1R | D30: F | E30: 0 | F30: 1.129 | G30: 1.129 | H30: 1.129 | I30: 1.129 | J30: 1.129 | K30: 1.129 | L30: 0 | M30: 0 | N30: 3.785 | O30: 2.523 | P30: 0 | Q30: 0 | R30: NA | S30: >40 & <400 | U30: 1.5
B33: * Tariff closed to premises not already taking supply under this tariff and new connections.
B34: ** Tariff only available in conjunction with the LVS1R tariff for new connections.
B35: Summer peak energy rates apply for period 1st November to 31st March (except TODFLEX which follows daylight savings periods) & RESKWTOU which applies from 1st December to 31st March.
B36: Non-summer peak energy rates apply for period 1st April to 31st October (except TODFLEX which follows non-daylight savings periods) & RESKWTOU which applies from 1st April to 30th November.
B37: PFIT (Premium Feed-In Tariff) is defined by an “F” added to the front of an existing distribution tariff ie. FTOD. The PFIT tariffs are closed to new connections.

Sheet 2018 NUOS Ex GST
B2: Schedule of Indicative Network Use of System (NUOS) Tariffs: 1 January 2018 (GST Exclusive)
E4: Network Tariff Component | R4: Eligibility (consumption/ category) | T4: Minimum Chargeable Rolling Demand | U4: Minimum Chargeable Demand
B5: Description | C5: Tariff Code | D5: PFIT (F) TFIT (T) | E5: Standing Charge (c/day) | F5: Summer Peak Energy (c/kWh) | G5: Non Summer Peak Energy Block 1 (c/kWh) | H5: Non Summer Peak Energy Block 2 (c/kWh) | I5: Summer Shoulder Energy (c/kWh) | J5: Non Summer Shoulder Energy (c/kWh) | K5: Off Peak Energy (c/kWh) | L5: Rolling Peak Demand c/kVA/day | M5: Summer Demand Incentive Charge c/kW/day or c/kVA/day | N5: Summer Demand Max kW c/KW/day | O5: Non-summer Demand Max kW c/KW/day | P5: Summer Demand Overrun Max kW c/KW/day | Q5: Non-summer Demand Overrun Max kW c/KW/day | R5: kVA | S5: MWh pa | T5: kVA | U5: kW
B6: Low voltage small 1 rate | C6: LVS1R | D6: F | E6: ='2018 DUOS Ex GST'!E6+'2018 TUOS Ex GST'!E6 -> 6.865 | F6: ='2018 DUOS Ex GST'!F6+'2018 TUOS Ex GST'!F6 -> 10.22 | G6: ='2018 DUOS Ex GST'!G6+'2018 TUOS Ex GST'!G6 -> 6.916 | H6: ='2018 DUOS Ex GST'!H6+'2018 TUOS Ex GST'!H6 -> 0 | I6: ='2018 DUOS Ex GST'!I6+'2018 TUOS Ex GST'!I6 -> 0 | J6: ='2018 DUOS Ex GST'!J6+'2018 TUOS Ex GST'!J6 -> 0 | K6: ='2018 DUOS Ex GST'!K6+'2018 TUOS Ex GST'!K6 -> 0 | L6: ='2018 DUOS Ex GST'!L6+'2018 TUOS Ex GST'!L6 -> 0 | M6: ='2018 DUOS Ex GST'!M6+'2018 TUOS Ex GST'!M6 -> 0 | N6: ='2018 DUOS Ex GST'!N6+'2018 TUOS Ex GST'!N6 -> 0 | O6: ='2018 DUOS Ex GST'!O6+'2018 TUOS Ex GST'!O6 -> 0 | P6: ='2018 DUOS Ex GST'!P6+'2018 TUOS Ex GST'!P6 -> 0 | Q6: ='2018 DUOS Ex GST'!Q6+'2018 TUOS Ex GST'!Q6 -> 0 | R6: NA | S6: <20
B7: Low voltage small 2 rate* | C7: LVS2R* | E7: ='2018 DUOS Ex GST'!E7+'2018 TUOS Ex GST'!E7 -> 14.02 | F7: ='2018 DUOS Ex GST'!F7+'2018 TUOS Ex GST'!F7 -> 13.01 | G7: ='2018 DUOS Ex GST'!G7+'2018 TUOS Ex GST'!G7 -> 9.991 | H7: ='2018 DUOS Ex GST'!H7+'2018 TUOS Ex GST'!H7 -> 0 | I7: ='2018 DUOS Ex GST'!I7+'2018 TUOS Ex GST'!I7 -> 0 | J7: ='2018 DUOS Ex GST'!J7+'2018 TUOS Ex GST'!J7 -> 0 | K7: ='2018 DUOS Ex GST'!K7+'2018 TUOS Ex GST'!K7 -> 1.745 | L7: ='2018 DUOS Ex GST'!L7+'2018 TUOS Ex GST'!L7 -> 0 | M7: ='2018 DUOS Ex GST'!M7+'2018 TUOS Ex GST'!M7 -> 0 | N7: ='2018 DUOS Ex GST'!N7+'2018 TUOS Ex GST'!N7 -> 0 | O7: ='2018 DUOS Ex GST'!O7+'2018 TUOS Ex GST'!O7 -> 0 | P7: ='2018 DUOS Ex GST'!P7+'2018 TUOS Ex GST'!P7 -> 0 | Q7: ='2018 DUOS Ex GST'!Q7+'2018 TUOS Ex GST'!Q7 -> 0
B8: Dedicated circuit** | C8: LVDed** | E8: ='2018 DUOS Ex GST'!E8+'2018 TUOS Ex GST'!E8 -> 0 | F8: ='2018 DUOS Ex GST'!F8+'2018 TUOS Ex GST'!F8 -> 0 | G8: ='2018 DUOS Ex GST'!G8+'2018 TUOS Ex GST'!G8 -> 0 | H8: ='2018 DUOS Ex GST'!H8+'2018 TUOS Ex GST'!H8 -> 0 | I8: ='2018 DUOS Ex GST'!I8+'2018 TUOS Ex GST'!I8 -> 0 | J8: ='2018 DUOS Ex GST'!J8+'2018 TUOS Ex GST'!J8 -> 0 | K8: ='2018 DUOS Ex GST'!K8+'2018 TUOS Ex GST'!K8 -> 1.931 | L8: ='2018 DUOS Ex GST'!L8+'2018 TUOS Ex GST'!L8 -> 0 | M8: ='2018 DUOS Ex GST'!M8+'2018 TUOS Ex GST'!M8 -> 0 | N8: ='2018 DUOS Ex GST'!N8+'2018 TUOS Ex GST'!N8 -> 0 | O8: ='2018 DUOS Ex GST'!O8+'2018 TUOS Ex GST'!O8 -> 0 | P8: ='2018 DUOS Ex GST'!P8+'2018 TUOS Ex GST'!P8 -> 0 | Q8: ='2018 DUOS Ex GST'!Q8+'2018 TUOS Ex GST'!Q8 -> 0 | R8: NA | S8: <20 (on LVS1R)
B9: Unmetered supplies | C9: UnMet | E9: ='2018 DUOS Ex GST'!E9+'2018 TUOS Ex GST'!E9 -> 0 | F9: ='2018 DUOS Ex GST'!F9+'2018 TUOS Ex GST'!F9 -> 11.22 | G9: ='2018 DUOS Ex GST'!G9+'2018 TUOS Ex GST'!G9 -> 8.395 | H9: ='2018 DUOS Ex GST'!H9+'2018 TUOS Ex GST'!H9 -> 0 | I9: ='2018 DUOS Ex GST'!I9+'2018 TUOS Ex GST'!I9 -> 0 | J9: ='2018 DUOS Ex GST'!J9+'2018 TUOS Ex GST'!J9 -> 0 | K9: ='2018 DUOS Ex GST'!K9+'2018 TUOS Ex GST'!K9 -> 1.525 | L9: ='2018 DUOS Ex GST'!L9+'2018 TUOS Ex GST'!L9 -> 0 | M9: ='2018 DUOS Ex GST'!M9+'2018 TUOS Ex GST'!M9 -> 0 | N9: ='2018 DUOS Ex GST'!N9+'2018 TUOS Ex GST'!N9 -> 0 | O9: ='2018 DUOS Ex GST'!O9+'2018 TUOS Ex GST'!O9 -> 0 | P9: ='2018 DUOS Ex GST'!P9+'2018 TUOS Ex GST'!P9 -> 0 | Q9: ='2018 DUOS Ex GST'!Q9+'2018 TUOS Ex GST'!Q9 -> 0
B10: Winter Energy Tariff* | C10: WET2Step* | E10: ='2018 DUOS Ex GST'!E10+'2018 TUOS Ex GST'!E10 -> 8.841 | F10: ='2018 DUOS Ex GST'!F10+'2018 TUOS Ex GST'!F10 -> 8.557 | G10: ='2018 DUOS Ex GST'!G10+'2018 TUOS Ex GST'!G10 -> 6.456 | H10: ='2018 DUOS Ex GST'!H10+'2018 TUOS Ex GST'!H10 -> 3.402 | I10: ='2018 DUOS Ex GST'!I10+'2018 TUOS Ex GST'!I10 -> 0 | J10: ='2018 DUOS Ex GST'!J10+'2018 TUOS Ex GST'!J10 -> 0 | K10: ='2018 DUOS Ex GST'!K10+'2018 TUOS Ex GST'!K10 -> 0 | L10: ='2018 DUOS Ex GST'!L10+'2018 TUOS Ex GST'!L10 -> 0 | M10: ='2018 DUOS Ex GST'!M10+'2018 TUOS Ex GST'!M10 -> 0 | N10: ='2018 DUOS Ex GST'!N10+'2018 TUOS Ex GST'!N10 -> 0 | O10: ='2018 DUOS Ex GST'!O10+'2018 TUOS Ex GST'!O10 -> 0 | P10: ='2018 DUOS Ex GST'!P10+'2018 TUOS Ex GST'!P10 -> 0 | Q10: ='2018 DUOS Ex GST'!Q10+'2018 TUOS Ex GST'!Q10 -> 0
B11: Reverse cycle airconditioning time of use* | C11: RCACkWTOU* | E11: ='2018 DUOS Ex GST'!E11+'2018 TUOS Ex GST'!E11 -> 0 | F11: ='2018 DUOS Ex GST'!F11+'2018 TUOS Ex GST'!F11 -> 0 | G11: ='2018 DUOS Ex GST'!G11+'2018 TUOS Ex GST'!G11 -> 0 | H11: ='2018 DUOS Ex GST'!H11+'2018 TUOS Ex GST'!H11 -> 0 | I11: ='2018 DUOS Ex GST'!I11+'2018 TUOS Ex GST'!I11 -> 0 | J11: ='2018 DUOS Ex GST'!J11+'2018 TUOS Ex GST'!J11 -> 0 | K11: ='2018 DUOS Ex GST'!K11+'2018 TUOS Ex GST'!K11 -> 0 | L11: ='2018 DUOS Ex GST'!L11+'2018 TUOS Ex GST'!L11 -> 0 | M11: ='2018 DUOS Ex GST'!M11+'2018 TUOS Ex GST'!M11 -> 0 | N11: ='2018 DUOS Ex GST'!N11+'2018 TUOS Ex GST'!N11 -> 0 | O11: ='2018 DUOS Ex GST'!O11+'2018 TUOS Ex GST'!O11 -> 0 | P11: ='2018 DUOS Ex GST'!P11+'2018 TUOS Ex GST'!P11 -> 0 | Q11: ='2018 DUOS Ex GST'!Q11+'2018 TUOS Ex GST'!Q11 -> 0
B12: Low voltage medium 1 rate | C12: LVM1R | D12: F | E12: ='2018 DUOS Ex GST'!E12+'2018 TUOS Ex GST'!E12 -> 11.652 | F12: ='2018 DUOS Ex GST'!F12+'2018 TUOS Ex GST'!F12 -> 12.303 | G12: ='2018 DUOS Ex GST'!G12+'2018 TUOS Ex GST'!G12 -> 8.038 | H12: ='2018 DUOS Ex GST'!H12+'2018 TUOS Ex GST'!H12 -> 0 | I12: ='2018 DUOS Ex GST'!I12+'2018 TUOS Ex GST'!I12 -> 0 | J12: ='2018 DUOS Ex GST'!J12+'2018 TUOS Ex GST'!J12 -> 0 | K12: ='2018 DUOS Ex GST'!K12+'2018 TUOS Ex GST'!K12 -> 0 | L12: ='2018 DUOS Ex GST'!L12+'2018 TUOS Ex GST'!L12 -> 0 | M12: ='2018 DUOS Ex GST'!M12+'2018 TUOS Ex GST'!M12 -> 0 | N12: ='2018 DUOS Ex GST'!N12+'2018 TUOS Ex GST'!N12 -> 0 | O12: ='2018 DUOS Ex GST'!O12+'2018 TUOS Ex GST'!O12 -> 0 | P12: ='2018 DUOS Ex GST'!P12+'2018 TUOS Ex GST'!P12 -> 0 | Q12: ='2018 DUOS Ex GST'!Q12+'2018 TUOS Ex GST'!Q12 -> 0 | R12: NA | S12: >20 & <160
B13: Low voltage medium 2 rate 5 day* | C13: LVM2R5D* | E13: ='2018 DUOS Ex GST'!E13+'2018 TUOS Ex GST'!E13 -> 22.303 | F13: ='2018 DUOS Ex GST'!F13+'2018 TUOS Ex GST'!F13 -> 12.616 | G13: ='2018 DUOS Ex GST'!G13+'2018 TUOS Ex GST'!G13 -> 9.544 | H13: ='2018 DUOS Ex GST'!H13+'2018 TUOS Ex GST'!H13 -> 0 | I13: ='2018 DUOS Ex GST'!I13+'2018 TUOS Ex GST'!I13 -> 0 | J13: ='2018 DUOS Ex GST'!J13+'2018 TUOS Ex GST'!J13 -> 0 | K13: ='2018 DUOS Ex GST'!K13+'2018 TUOS Ex GST'!K13 -> 2.022 | L13: ='2018 DUOS Ex GST'!L13+'2018 TUOS Ex GST'!L13 -> 0 | M13: ='2018 DUOS Ex GST'!M13+'2018 TUOS Ex GST'!M13 -> 0 | N13: ='2018 DUOS Ex GST'!N13+'2018 TUOS Ex GST'!N13 -> 0 | O13: ='2018 DUOS Ex GST'!O13+'2018 TUOS Ex GST'!O13 -> 0 | P13: ='2018 DUOS Ex GST'!P13+'2018 TUOS Ex GST'!P13 -> 0 | Q13: ='2018 DUOS Ex GST'!Q13+'2018 TUOS Ex GST'!Q13 -> 0
B14: Low voltage medium 2 rate 7 day* | C14: LVM2R7D* | E14: ='2018 DUOS Ex GST'!E14+'2018 TUOS Ex GST'!E14 -> 23.742 | F14: ='2018 DUOS Ex GST'!F14+'2018 TUOS Ex GST'!F14 -> 12.433 | G14: ='2018 DUOS Ex GST'!G14+'2018 TUOS Ex GST'!G14 -> 9.683 | H14: ='2018 DUOS Ex GST'!H14+'2018 TUOS Ex GST'!H14 -> 0 | I14: ='2018 DUOS Ex GST'!I14+'2018 TUOS Ex GST'!I14 -> 0 | J14: ='2018 DUOS Ex GST'!J14+'2018 TUOS Ex GST'!J14 -> 0 | K14: ='2018 DUOS Ex GST'!K14+'2018 TUOS Ex GST'!K14 -> 1.88 | L14: ='2018 DUOS Ex GST'!L14+'2018 TUOS Ex GST'!L14 -> 0 | M14: ='2018 DUOS Ex GST'!M14+'2018 TUOS Ex GST'!M14 -> 0 | N14: ='2018 DUOS Ex GST'!N14+'2018 TUOS Ex GST'!N14 -> 0 | O14: ='2018 DUOS Ex GST'!O14+'2018 TUOS Ex GST'!O14 -> 0 | P14: ='2018 DUOS Ex GST'!P14+'2018 TUOS Ex GST'!P14 -> 0 | Q14: ='2018 DUOS Ex GST'!Q14+'2018 TUOS Ex GST'!Q14 -> 0
B15: Low voltage KW time of use* | C15: LVkWTOU* | E15: ='2018 DUOS Ex GST'!E15+'2018 TUOS Ex GST'!E15 -> 0 | F15: ='2018 DUOS Ex GST'!F15+'2018 TUOS Ex GST'!F15 -> 10.567 | G15: ='2018 DUOS Ex GST'!G15+'2018 TUOS Ex GST'!G15 -> 6.545 | H15: ='2018 DUOS Ex GST'!H15+'2018 TUOS Ex GST'!H15 -> 0 | I15: ='2018 DUOS Ex GST'!I15+'2018 TUOS Ex GST'!I15 -> 0 | J15: ='2018 DUOS Ex GST'!J15+'2018 TUOS Ex GST'!J15 -> 0 | K15: ='2018 DUOS Ex GST'!K15+'2018 TUOS Ex GST'!K15 -> 2.075 | L15: ='2018 DUOS Ex GST'!L15+'2018 TUOS Ex GST'!L15 -> 0 | M15: ='2018 DUOS Ex GST'!M15+'2018 TUOS Ex GST'!M15 -> 50.395 | N15: ='2018 DUOS Ex GST'!N15+'2018 TUOS Ex GST'!N15 -> 0 | O15: ='2018 DUOS Ex GST'!O15+'2018 TUOS Ex GST'!O15 -> 0 | P15: ='2018 DUOS Ex GST'!P15+'2018 TUOS Ex GST'!P15 -> 0 | Q15: ='2018 DUOS Ex GST'!Q15+'2018 TUOS Ex GST'!Q15 -> 0
B16: Low voltage KW time of use - HOT* | C16: LVkWTOUH* | E16: ='2018 DUOS Ex GST'!E16+'2018 TUOS Ex GST'!E16 -> 0 | F16: ='2018 DUOS Ex GST'!F16+'2018 TUOS Ex GST'!F16 -> 8.665 | G16: ='2018 DUOS Ex GST'!G16+'2018 TUOS Ex GST'!G16 -> 6.688 | H16: ='2018 DUOS Ex GST'!H16+'2018 TUOS Ex GST'!H16 -> 0 | I16: ='2018 DUOS Ex GST'!I16+'2018 TUOS Ex GST'!I16 -> 0 | J16: ='2018 DUOS Ex GST'!J16+'2018 TUOS Ex GST'!J16 -> 0 | K16: ='2018 DUOS Ex GST'!K16+'2018 TUOS Ex GST'!K16 -> 1.753 | L16: ='2018 DUOS Ex GST'!L16+'2018 TUOS Ex GST'!L16 -> 0 | M16: ='2018 DUOS Ex GST'!M16+'2018 TUOS Ex GST'!M16 -> 76.399 | N16: ='2018 DUOS Ex GST'!N16+'2018 TUOS Ex GST'!N16 -> 0 | O16: ='2018 DUOS Ex GST'!O16+'2018 TUOS Ex GST'!O16 -> 0 | P16: ='2018 DUOS Ex GST'!P16+'2018 TUOS Ex GST'!P16 -> 0 | Q16: ='2018 DUOS Ex GST'!Q16+'2018 TUOS Ex GST'!Q16 -> 0
B17: Low voltage large 1 rate* | C17: LVL1R* | E17: ='2018 DUOS Ex GST'!E17+'2018 TUOS Ex GST'!E17 -> 13.641 | F17: ='2018 DUOS Ex GST'!F17+'2018 TUOS Ex GST'!F17 -> 8.303 | G17: ='2018 DUOS Ex GST'!G17+'2018 TUOS Ex GST'!G17 -> 6.572 | H17: ='2018 DUOS Ex GST'!H17+'2018 TUOS Ex GST'!H17 -> 0 | I17: ='2018 DUOS Ex GST'!I17+'2018 TUOS Ex GST'!I17 -> 0 | J17: ='2018 DUOS Ex GST'!J17+'2018 TUOS Ex GST'!J17 -> 0 | K17: ='2018 DUOS Ex GST'!K17+'2018 TUOS Ex GST'!K17 -> 0 | L17: ='2018 DUOS Ex GST'!L17+'2018 TUOS Ex GST'!L17 -> 0 | M17: ='2018 DUOS Ex GST'!M17+'2018 TUOS Ex GST'!M17 -> 0 | N17: ='2018 DUOS Ex GST'!N17+'2018 TUOS Ex GST'!N17 -> 0 | O17: ='2018 DUOS Ex GST'!O17+'2018 TUOS Ex GST'!O17 -> 0 | P17: ='2018 DUOS Ex GST'!P17+'2018 TUOS Ex GST'!P17 -> 0 | Q17: ='2018 DUOS Ex GST'!Q17+'2018 TUOS Ex GST'!Q17 -> 0
B18: Low voltage large 2 rate* | C18: LVL2R* | E18: ='2018 DUOS Ex GST'!E18+'2018 TUOS Ex GST'!E18 -> 19.678 | F18: ='2018 DUOS Ex GST'!F18+'2018 TUOS Ex GST'!F18 -> 11.36 | G18: ='2018 DUOS Ex GST'!G18+'2018 TUOS Ex GST'!G18 -> 9.042 | H18: ='2018 DUOS Ex GST'!H18+'2018 TUOS Ex GST'!H18 -> 0 | I18: ='2018 DUOS Ex GST'!I18+'2018 TUOS Ex GST'!I18 -> 0 | J18: ='2018 DUOS Ex GST'!J18+'2018 TUOS Ex GST'!J18 -> 0 | K18: ='2018 DUOS Ex GST'!K18+'2018 TUOS Ex GST'!K18 -> 1.861 | L18: ='2018 DUOS Ex GST'!L18+'2018 TUOS Ex GST'!L18 -> 0 | M18: ='2018 DUOS Ex GST'!M18+'2018 TUOS Ex GST'!M18 -> 0 | N18: ='2018 DUOS Ex GST'!N18+'2018 TUOS Ex GST'!N18 -> 0 | O18: ='2018 DUOS Ex GST'!O18+'2018 TUOS Ex GST'!O18 -> 0 | P18: ='2018 DUOS Ex GST'!P18+'2018 TUOS Ex GST'!P18 -> 0 | Q18: ='2018 DUOS Ex GST'!Q18+'2018 TUOS Ex GST'!Q18 -> 0
B19: Low voltage large KVA time of use | C19: LVkVATOU | E19: ='2018 DUOS Ex GST'!E19+'2018 TUOS Ex GST'!E19 -> 0 | F19: ='2018 DUOS Ex GST'!F19+'2018 TUOS Ex GST'!F19 -> 2.308 | G19: ='2018 DUOS Ex GST'!G19+'2018 TUOS Ex GST'!G19 -> 1.915 | H19: ='2018 DUOS Ex GST'!H19+'2018 TUOS Ex GST'!H19 -> 0 | I19: ='2018 DUOS Ex GST'!I19+'2018 TUOS Ex GST'!I19 -> 0 | J19: ='2018 DUOS Ex GST'!J19+'2018 TUOS Ex GST'!J19 -> 0 | K19: ='2018 DUOS Ex GST'!K19+'2018 TUOS Ex GST'!K19 -> 1.18 | L19: ='2018 DUOS Ex GST'!L19+'2018 TUOS Ex GST'!L19 -> 17.875 | M19: ='2018 DUOS Ex GST'!M19+'2018 TUOS Ex GST'!M19 -> 26.207 | N19: ='2018 DUOS Ex GST'!N19+'2018 TUOS Ex GST'!N19 -> 0 | O19: ='2018 DUOS Ex GST'!O19+'2018 TUOS Ex GST'!O19 -> 0 | P19: ='2018 DUOS Ex GST'!P19+'2018 TUOS Ex GST'!P19 -> 0 | Q19: ='2018 DUOS Ex GST'!Q19+'2018 TUOS Ex GST'!Q19 -> 0 | R19: >150 | S19: >400 | T19: 150
B20: Low voltage large KVA time of use - HOT* | C20: LVkVATOUH* | E20: ='2018 DUOS Ex GST'!E20+'2018 TUOS Ex GST'!E20 -> 0 | F20: ='2018 DUOS Ex GST'!F20+'2018 TUOS Ex GST'!F20 -> 0 | G20: ='2018 DUOS Ex GST'!G20+'2018 TUOS Ex GST'!G20 -> 0 | H20: ='2018 DUOS Ex GST'!H20+'2018 TUOS Ex GST'!H20 -> 0 | I20: ='2018 DUOS Ex GST'!I20+'2018 TUOS Ex GST'!I20 -> 0 | J20: ='2018 DUOS Ex GST'!J20+'2018 TUOS Ex GST'!J20 -> 0 | K20: ='2018 DUOS Ex GST'!K20+'2018 TUOS Ex GST'!K20 -> 0 | L20: ='2018 DUOS Ex GST'!L20+'2018 TUOS Ex GST'!L20 -> 0 | M20: ='2018 DUOS Ex GST'!M20+'2018 TUOS Ex GST'!M20 -> 0 | N20: ='2018 DUOS Ex GST'!N20+'2018 TUOS Ex GST'!N20 -> 0 | O20: ='2018 DUOS Ex GST'!O20+'2018 TUOS Ex GST'!O20 -> 0 | P20: ='2018 DUOS Ex GST'!P20+'2018 TUOS Ex GST'!P20 -> 0 | Q20: ='2018 DUOS Ex GST'!Q20+'2018 TUOS Ex GST'!Q20 -> 0 | T20: 150
B21: High voltage KVA time of use | C21: HVkVATOU | E21: ='2018 DUOS Ex GST'!E21+'2018 TUOS Ex GST'!E21 -> 0 | F21: ='2018 DUOS Ex GST'!F21+'2018 TUOS Ex GST'!F21 -> 1.476 | G21: ='2018 DUOS Ex GST'!G21+'2018 TUOS Ex GST'!G21 -> 1.251 | H21: ='2018 DUOS Ex GST'!H21+'2018 TUOS Ex GST'!H21 -> 0 | I21: ='2018 DUOS Ex GST'!I21+'2018 TUOS Ex GST'!I21 -> 0 | J21: ='2018 DUOS Ex GST'!J21+'2018 TUOS Ex GST'!J21 -> 0 | K21: ='2018 DUOS Ex GST'!K21+'2018 TUOS Ex GST'!K21 -> 0.731 | L21: ='2018 DUOS Ex GST'!L21+'2018 TUOS Ex GST'!L21 -> 12.804 | M21: ='2018 DUOS Ex GST'!M21+'2018 TUOS Ex GST'!M21 -> 16.22 | N21: ='2018 DUOS Ex GST'!N21+'2018 TUOS Ex GST'!N21 -> 0 | O21: ='2018 DUOS Ex GST'!O21+'2018 TUOS Ex GST'!O21 -> 0 | P21: ='2018 DUOS Ex GST'!P21+'2018 TUOS Ex GST'!P21 -> 0 | Q21: ='2018 DUOS Ex GST'!Q21+'2018 TUOS Ex GST'!Q21 -> 0 | R21: >150 | S21: >400 | T21: 1150
B22: High voltage KVA time of use - HOT* | C22: HVkVATOUH* | E22: ='2018 DUOS Ex GST'!E22+'2018 TUOS Ex GST'!E22 -> 0 | F22: ='2018 DUOS Ex GST'!F22+'2018 TUOS Ex GST'!F22 -> 0 | G22: ='2018 DUOS Ex GST'!G22+'2018 TUOS Ex GST'!G22 -> 0 | H22: ='2018 DUOS Ex GST'!H22+'2018 TUOS Ex GST'!H22 -> 0 | I22: ='2018 DUOS Ex GST'!I22+'2018 TUOS Ex GST'!I22 -> 0 | J22: ='2018 DUOS Ex GST'!J22+'2018 TUOS Ex GST'!J22 -> 0 | K22: ='2018 DUOS Ex GST'!K22+'2018 TUOS Ex GST'!K22 -> 0 | L22: ='2018 DUOS Ex GST'!L22+'2018 TUOS Ex GST'!L22 -> 0 | M22: ='2018 DUOS Ex GST'!M22+'2018 TUOS Ex GST'!M22 -> 0 | N22: ='2018 DUOS Ex GST'!N22+'2018 TUOS Ex GST'!N22 -> 0 | O22: ='2018 DUOS Ex GST'!O22+'2018 TUOS Ex GST'!O22 -> 0 | P22: ='2018 DUOS Ex GST'!P22+'2018 TUOS Ex GST'!P22 -> 0 | Q22: ='2018 DUOS Ex GST'!Q22+'2018 TUOS Ex GST'!Q22 -> 0 | T22: 1150
B23: Subtransmission KVA time of use* | C23: SubTkVATOU* | E23: ='2018 DUOS Ex GST'!E23+'2018 TUOS Ex GST'!E23 -> 0 | F23: ='2018 DUOS Ex GST'!F23+'2018 TUOS Ex GST'!F23 -> 0.907 | G23: ='2018 DUOS Ex GST'!G23+'2018 TUOS Ex GST'!G23 -> 0.718 | H23: ='2018 DUOS Ex GST'!H23+'2018 TUOS Ex GST'!H23 -> 0 | I23: ='2018 DUOS Ex GST'!I23+'2018 TUOS Ex GST'!I23 -> 0 | J23: ='2018 DUOS Ex GST'!J23+'2018 TUOS Ex GST'!J23 -> 0 | K23: ='2018 DUOS Ex GST'!K23+'2018 TUOS Ex GST'!K23 -> 0.324 | L23: ='2018 DUOS Ex GST'!L23+'2018 TUOS Ex GST'!L23 -> 3.87 | M23: ='2018 DUOS Ex GST'!M23+'2018 TUOS Ex GST'!M23 -> 4.907 | N23: ='2018 DUOS Ex GST'!N23+'2018 TUOS Ex GST'!N23 -> 0 | O23: ='2018 DUOS Ex GST'!O23+'2018 TUOS Ex GST'!O23 -> 0 | P23: ='2018 DUOS Ex GST'!P23+'2018 TUOS Ex GST'!P23 -> 0 | Q23: ='2018 DUOS Ex GST'!Q23+'2018 TUOS Ex GST'!Q23 -> 0 | T23: 11100
B24: Time of Day | C24: TOD | D24: F | E24: ='2018 DUOS Ex GST'!E24+'2018 TUOS Ex GST'!E24 -> 6.53 | F24: ='2018 DUOS Ex GST'!F24+'2018 TUOS Ex GST'!F24 -> 18.541 | G24: ='2018 DUOS Ex GST'!G24+'2018 TUOS Ex GST'!G24 -> 11.665 | H24: ='2018 DUOS Ex GST'!H24+'2018 TUOS Ex GST'!H24 -> 0 | I24: ='2018 DUOS Ex GST'!I24+'2018 TUOS Ex GST'!I24 -> 6.837 | J24: ='2018 DUOS Ex GST'!J24+'2018 TUOS Ex GST'!J24 -> 5.39 | K24: ='2018 DUOS Ex GST'!K24+'2018 TUOS Ex GST'!K24 -> 3.027 | L24: ='2018 DUOS Ex GST'!L24+'2018 TUOS Ex GST'!L24 -> 0 | M24: ='2018 DUOS Ex GST'!M24+'2018 TUOS Ex GST'!M24 -> 0 | N24: ='2018 DUOS Ex GST'!N24+'2018 TUOS Ex GST'!N24 -> 0 | O24: ='2018 DUOS Ex GST'!O24+'2018 TUOS Ex GST'!O24 -> 0 | P24: ='2018 DUOS Ex GST'!P24+'2018 TUOS Ex GST'!P24 -> 0 | Q24: ='2018 DUOS Ex GST'!Q24+'2018 TUOS Ex GST'!Q24 -> 0 | R24: NA | S24: <20
B25: Time of Use | C25: TOU | D25: F | E25: ='2018 DUOS Ex GST'!E25+'2018 TUOS Ex GST'!E25 -> 0 | F25: ='2018 DUOS Ex GST'!F25+'2018 TUOS Ex GST'!F25 -> 11.758 | G25: ='2018 DUOS Ex GST'!G25+'2018 TUOS Ex GST'!G25 -> 6.83 | H25: ='2018 DUOS Ex GST'!H25+'2018 TUOS Ex GST'!H25 -> 0 | I25: ='2018 DUOS Ex GST'!I25+'2018 TUOS Ex GST'!I25 -> 0 | J25: ='2018 DUOS Ex GST'!J25+'2018 TUOS Ex GST'!J25 -> 0 | K25: ='2018 DUOS Ex GST'!K25+'2018 TUOS Ex GST'!K25 -> 2.829 | L25: ='2018 DUOS Ex GST'!L25+'2018 TUOS Ex GST'!L25 -> 0 | M25: ='2018 DUOS Ex GST'!M25+'2018 TUOS Ex GST'!M25 -> 47.425 | N25: ='2018 DUOS Ex GST'!N25+'2018 TUOS Ex GST'!N25 -> 0 | O25: ='2018 DUOS Ex GST'!O25+'2018 TUOS Ex GST'!O25 -> 0 | P25: ='2018 DUOS Ex GST'!P25+'2018 TUOS Ex GST'!P25 -> 0 | Q25: ='2018 DUOS Ex GST'!Q25+'2018 TUOS Ex GST'!Q25 -> 0 | R25: NA | S25: >20 & <160
B26: Time of Day 9pm off-peak | C26: TOD9 | D26: F | E26: ='2018 DUOS Ex GST'!E26+'2018 TUOS Ex GST'!E26 -> 6.774 | F26: ='2018 DUOS Ex GST'!F26+'2018 TUOS Ex GST'!F26 -> 21.515 | G26: ='2018 DUOS Ex GST'!G26+'2018 TUOS Ex GST'!G26 -> 14.547 | H26: ='2018 DUOS Ex GST'!H26+'2018 TUOS Ex GST'!H26 -> 0 | I26: ='2018 DUOS Ex GST'!I26+'2018 TUOS Ex GST'!I26 -> 9.034 | J26: ='2018 DUOS Ex GST'!J26+'2018 TUOS Ex GST'!J26 -> 7.778 | K26: ='2018 DUOS Ex GST'!K26+'2018 TUOS Ex GST'!K26 -> 4.193 | L26: ='2018 DUOS Ex GST'!L26+'2018 TUOS Ex GST'!L26 -> 0 | M26: ='2018 DUOS Ex GST'!M26+'2018 TUOS Ex GST'!M26 -> 0 | N26: ='2018 DUOS Ex GST'!N26+'2018 TUOS Ex GST'!N26 -> 0 | O26: ='2018 DUOS Ex GST'!O26+'2018 TUOS Ex GST'!O26 -> 0 | P26: ='2018 DUOS Ex GST'!P26+'2018 TUOS Ex GST'!P26 -> 0 | Q26: ='2018 DUOS Ex GST'!Q26+'2018 TUOS Ex GST'!Q26 -> 0 | R26: NA | S26: <20
B27: Time of Day Flexible | C27: TODFLEX | D27: F | E27: ='2018 DUOS Ex GST'!E27+'2018 TUOS Ex GST'!E27 -> 7.295 | F27: ='2018 DUOS Ex GST'!F27+'2018 TUOS Ex GST'!F27 -> 20.64 | G27: ='2018 DUOS Ex GST'!G27+'2018 TUOS Ex GST'!G27 -> 13.005 | H27: ='2018 DUOS Ex GST'!H27+'2018 TUOS Ex GST'!H27 -> 0 | I27: ='2018 DUOS Ex GST'!I27+'2018 TUOS Ex GST'!I27 -> 6.341 | J27: ='2018 DUOS Ex GST'!J27+'2018 TUOS Ex GST'!J27 -> 6.151 | K27: ='2018 DUOS Ex GST'!K27+'2018 TUOS Ex GST'!K27 -> 4.009 | L27: ='2018 DUOS Ex GST'!L27+'2018 TUOS Ex GST'!L27 -> 0 | M27: ='2018 DUOS Ex GST'!M27+'2018 TUOS Ex GST'!M27 -> 0 | N27: ='2018 DUOS Ex GST'!N27+'2018 TUOS Ex GST'!N27 -> 0 | O27: ='2018 DUOS Ex GST'!O27+'2018 TUOS Ex GST'!O27 -> 0 | P27: ='2018 DUOS Ex GST'!P27+'2018 TUOS Ex GST'!P27 -> 0 | Q27: ='2018 DUOS Ex GST'!Q27+'2018 TUOS Ex GST'!Q27 -> 0 | R27: Residential Customer
B28: Low voltage KW 1 rate | C28: RESKW1R | D28: F | E28: ='2018 DUOS Ex GST'!E28+'2018 TUOS Ex GST'!E28 -> 0 | F28: ='2018 DUOS Ex GST'!F28+'2018 TUOS Ex GST'!F28 -> 3.305 | G28: ='2018 DUOS Ex GST'!G28+'2018 TUOS Ex GST'!G28 -> 3.305 | H28: ='2018 DUOS Ex GST'!H28+'2018 TUOS Ex GST'!H28 -> 3.305 | I28: ='2018 DUOS Ex GST'!I28+'2018 TUOS Ex GST'!I28 -> 3.305 | J28: ='2018 DUOS Ex GST'!J28+'2018 TUOS Ex GST'!J28 -> 3.305 | K28: ='2018 DUOS Ex GST'!K28+'2018 TUOS Ex GST'!K28 -> 3.305 | L28: ='2018 DUOS Ex GST'!L28+'2018 TUOS Ex GST'!L28 -> 0 | M28: ='2018 DUOS Ex GST'!M28+'2018 TUOS Ex GST'!M28 -> 0 | N28: ='2018 DUOS Ex GST'!N28+'2018 TUOS Ex GST'!N28 -> 30.571 | O28: ='2018 DUOS Ex GST'!O28+'2018 TUOS Ex GST'!O28 -> 13.198 | P28: ='2018 DUOS Ex GST'!P28+'2018 TUOS Ex GST'!P28 -> 0 | Q28: ='2018 DUOS Ex GST'!Q28+'2018 TUOS Ex GST'!Q28 -> 0 | R28: NA | S28: <20 | U28: 1.5
B29: Low Voltage Medium kW Time of Use (Opt-in) | C29: LVMKWTOU | D29: F | E29: ='2018 DUOS Ex GST'!E29+'2018 TUOS Ex GST'!E29 -> 0 | F29: ='2018 DUOS Ex GST'!F29+'2018 TUOS Ex GST'!F29 -> 4.436 | G29: ='2018 DUOS Ex GST'!G29+'2018 TUOS Ex GST'!G29 -> 4.436 | H29: ='2018 DUOS Ex GST'!H29+'2018 TUOS Ex GST'!H29 -> 4.436 | I29: ='2018 DUOS Ex GST'!I29+'2018 TUOS Ex GST'!I29 -> 4.436 | J29: ='2018 DUOS Ex GST'!J29+'2018 TUOS Ex GST'!J29 -> 4.436 | K29: ='2018 DUOS Ex GST'!K29+'2018 TUOS Ex GST'!K29 -> 4.436 | L29: ='2018 DUOS Ex GST'!L29+'2018 TUOS Ex GST'!L29 -> 0 | M29: ='2018 DUOS Ex GST'!M29+'2018 TUOS Ex GST'!M29 -> 0 | N29: ='2018 DUOS Ex GST'!N29+'2018 TUOS Ex GST'!N29 -> 36.69 | O29: ='2018 DUOS Ex GST'!O29+'2018 TUOS Ex GST'!O29 -> 24.46 | P29: ='2018 DUOS Ex GST'!P29+'2018 TUOS Ex GST'!P29 -> 0 | Q29: ='2018 DUOS Ex GST'!Q29+'2018 TUOS Ex GST'!Q29 -> 0 | R29: NA | S29: >20 & <400 | U29: 1.5
B30: Low Voltage Medium kW 1 rate (Mandatory) | C30: LVMKW1R | D30: F | E30: ='2018 DUOS Ex GST'!E30+'2018 TUOS Ex GST'!E30 -> 0 | F30: ='2018 DUOS Ex GST'!F30+'2018 TUOS Ex GST'!F30 -> 6.786 | G30: ='2018 DUOS Ex GST'!G30+'2018 TUOS Ex GST'!G30 -> 6.786 | H30: ='2018 DUOS Ex GST'!H30+'2018 TUOS Ex GST'!H30 -> 6.786 | I30: ='2018 DUOS Ex GST'!I30+'2018 TUOS Ex GST'!I30 -> 6.786 | J30: ='2018 DUOS Ex GST'!J30+'2018 TUOS Ex GST'!J30 -> 6.786 | K30: ='2018 DUOS Ex GST'!K30+'2018 TUOS Ex GST'!K30 -> 6.786 | L30: ='2018 DUOS Ex GST'!L30+'2018 TUOS Ex GST'!L30 -> 0 | M30: ='2018 DUOS Ex GST'!M30+'2018 TUOS Ex GST'!M30 -> 0 | N30: ='2018 DUOS Ex GST'!N30+'2018 TUOS Ex GST'!N30 -> 22.74 | O30: ='2018 DUOS Ex GST'!O30+'2018 TUOS Ex GST'!O30 -> 15.159 | P30: ='2018 DUOS Ex GST'!P30+'2018 TUOS Ex GST'!P30 -> 0 | Q30: ='2018 DUOS Ex GST'!Q30+'2018 TUOS Ex GST'!Q30 -> 0 | R30: NA | S30: >40 & <400 | U30: 1.5
B33: * Tariff closed to premises not already taking supply under this tariff and new connections.
B34: ** Tariff only available in conjunction with the LVS1R tariff for new connections.
B35: Summer peak energy rates apply for period 1st November to 31st March (except TODFLEX which follows daylight savings periods) & RESKWTOU which applies from 1st December to 31st March.
B36: Non-summer peak energy rates apply for period 1st April to 31st October (except TODFLEX which follows non-daylight savings periods) & RESKWTOU which applies from 1st April to 30th November.
B37: PFIT (Premium Feed-In Tariff) is defined by an “F” added to the front of an existing distribution tariff ie. FTOD. The PFIT tariffs are closed to new connections.

Sheet 2018 DUOS Incl GST
B2: Schedule of Indicative Distribution Use of System (DUOS) Tariffs: 1 January 2018 (GST Inclusive)
E4: Network Tariff Component | R4: Eligibility (consumption/ category) | T4: Minimum Chargeable Rolling Demand | U4: Minimum Chargeable Demand
B5: Description | C5: Tariff Code | D5: PFIT (F) TFIT (T) | E5: Standing Charge (c/day) | F5: Summer Peak Energy (c/kWh) | G5: Non Summer Peak Energy Block 1 (c/kWh) | H5: Non Summer Peak Energy Block 2 (c/kWh) | I5: Summer Shoulder Energy (c/kWh) | J5: Non Summer Shoulder Energy (c/kWh) | K5: Off Peak Energy (c/kWh) | L5: Rolling Peak Demand c/kVA/day | M5: Summer Demand Incentive Charge c/kW/day or c/kVA/day | N5: Summer Demand Max kW c/KW/day | O5: Non-summer Demand Max kW c/KW/day | P5: Summer Demand Overrun Max kW c/KW/day | Q5: Non-summer Demand Overrun Max kW c/KW/day | R5: kVA | S5: MWh pa | T5: kVA | U5: kW
B6: Low voltage small 1 rate | C6: LVS1R | D6: F | E6: ='2018 DUOS Ex GST'!E6*1.1 -> 7.5515 | F6: ='2018 DUOS Ex GST'!F6*1.1 -> 9.3115 | G6: ='2018 DUOS Ex GST'!G6*1.1 -> 5.9939 | H6: ='2018 DUOS Ex GST'!H6*1.1 -> 0 | I6: ='2018 DUOS Ex GST'!I6*1.1 -> 0 | J6: ='2018 DUOS Ex GST'!J6*1.1 -> 0 | K6: ='2018 DUOS Ex GST'!K6*1.1 -> 0 | L6: ='2018 DUOS Ex GST'!L6*1.1 -> 0 | M6: ='2018 DUOS Ex GST'!M6*1.1 -> 0 | N6: ='2018 DUOS Ex GST'!N6*1.1 -> 0 | O6: ='2018 DUOS Ex GST'!O6*1.1 -> 0 | P6: ='2018 DUOS Ex GST'!P6*1.1 -> 0 | Q6: ='2018 DUOS Ex GST'!Q6*1.1 -> 0 | R6: NA | S6: <20
B7: Low voltage small 2 rate* | C7: LVS2R* | E7: ='2018 DUOS Ex GST'!E7*1.1 -> 15.422 | F7: ='2018 DUOS Ex GST'!F7*1.1 -> 11.0693 | G7: ='2018 DUOS Ex GST'!G7*1.1 -> 8.3952 | H7: ='2018 DUOS Ex GST'!H7*1.1 -> 0 | I7: ='2018 DUOS Ex GST'!I7*1.1 -> 0 | J7: ='2018 DUOS Ex GST'!J7*1.1 -> 0 | K7: ='2018 DUOS Ex GST'!K7*1.1 -> 1.9195 | L7: ='2018 DUOS Ex GST'!L7*1.1 -> 0 | M7: ='2018 DUOS Ex GST'!M7*1.1 -> 0 | N7: ='2018 DUOS Ex GST'!N7*1.1 -> 0 | O7: ='2018 DUOS Ex GST'!O7*1.1 -> 0 | P7: ='2018 DUOS Ex GST'!P7*1.1 -> 0 | Q7: ='2018 DUOS Ex GST'!Q7*1.1 -> 0
B8: Dedicated circuit** | C8: LVDed** | E8: ='2018 DUOS Ex GST'!E8*1.1 -> 0 | F8: ='2018 DUOS Ex GST'!F8*1.1 -> 0 | G8: ='2018 DUOS Ex GST'!G8*1.1 -> 0 | H8: ='2018 DUOS Ex GST'!H8*1.1 -> 0 | I8: ='2018 DUOS Ex GST'!I8*1.1 -> 0 | J8: ='2018 DUOS Ex GST'!J8*1.1 -> 0 | K8: ='2018 DUOS Ex GST'!K8*1.1 -> 2.1241 | L8: ='2018 DUOS Ex GST'!L8*1.1 -> 0 | M8: ='2018 DUOS Ex GST'!M8*1.1 -> 0 | N8: ='2018 DUOS Ex GST'!N8*1.1 -> 0 | O8: ='2018 DUOS Ex GST'!O8*1.1 -> 0 | P8: ='2018 DUOS Ex GST'!P8*1.1 -> 0 | Q8: ='2018 DUOS Ex GST'!Q8*1.1 -> 0 | R8: NA | S8: <20 (on LVS1R)
B9: Unmetered supplies | C9: UnMet | E9: ='2018 DUOS Ex GST'!E9*1.1 -> 0 | F9: ='2018 DUOS Ex GST'!F9*1.1 -> 9.3049 | G9: ='2018 DUOS Ex GST'!G9*1.1 -> 6.8068 | H9: ='2018 DUOS Ex GST'!H9*1.1 -> 0 | I9: ='2018 DUOS Ex GST'!I9*1.1 -> 0 | J9: ='2018 DUOS Ex GST'!J9*1.1 -> 0 | K9: ='2018 DUOS Ex GST'!K9*1.1 -> 1.6775 | L9: ='2018 DUOS Ex GST'!L9*1.1 -> 0 | M9: ='2018 DUOS Ex GST'!M9*1.1 -> 0 | N9: ='2018 DUOS Ex GST'!N9*1.1 -> 0 | O9: ='2018 DUOS Ex GST'!O9*1.1 -> 0 | P9: ='2018 DUOS Ex GST'!P9*1.1 -> 0 | Q9: ='2018 DUOS Ex GST'!Q9*1.1 -> 0
B10: Winter Energy Tariff* | C10: WET2Step* | E10: ='2018 DUOS Ex GST'!E10*1.1 -> 9.7251 | F10: ='2018 DUOS Ex GST'!F10*1.1 -> 7.2523 | G10: ='2018 DUOS Ex GST'!G10*1.1 -> 5.3735 | H10: ='2018 DUOS Ex GST'!H10*1.1 -> 2.0141 | I10: ='2018 DUOS Ex GST'!I10*1.1 -> 0 | J10: ='2018 DUOS Ex GST'!J10*1.1 -> 0 | K10: ='2018 DUOS Ex GST'!K10*1.1 -> 0 | L10: ='2018 DUOS Ex GST'!L10*1.1 -> 0 | M10: ='2018 DUOS Ex GST'!M10*1.1 -> 0 | N10: ='2018 DUOS Ex GST'!N10*1.1 -> 0 | O10: ='2018 DUOS Ex GST'!O10*1.1 -> 0 | P10: ='2018 DUOS Ex GST'!P10*1.1 -> 0 | Q10: ='2018 DUOS Ex GST'!Q10*1.1 -> 0
B11: Reverse cycle airconditioning time of use* | C11: RCACkWTOU* | E11: ='2018 DUOS Ex GST'!E11*1.1 -> 0 | F11: ='2018 DUOS Ex GST'!F11*1.1 -> 0 | G11: ='2018 DUOS Ex GST'!G11*1.1 -> 0 | H11: ='2018 DUOS Ex GST'!H11*1.1 -> 0 | I11: ='2018 DUOS Ex GST'!I11*1.1 -> 0 | J11: ='2018 DUOS Ex GST'!J11*1.1 -> 0 | K11: ='2018 DUOS Ex GST'!K11*1.1 -> 0 | L11: ='2018 DUOS Ex GST'!L11*1.1 -> 0 | M11: ='2018 DUOS Ex GST'!M11*1.1 -> 0 | N11: ='2018 DUOS Ex GST'!N11*1.1 -> 0 | O11: ='2018 DUOS Ex GST'!O11*1.1 -> 0 | P11: ='2018 DUOS Ex GST'!P11*1.1 -> 0 | Q11: ='2018 DUOS Ex GST'!Q11*1.1 -> 0
B12: Low voltage medium 1 rate | C12: LVM1R | D12: F | E12: ='2018 DUOS Ex GST'!E12*1.1 -> 12.8172 | F12: ='2018 DUOS Ex GST'!F12*1.1 -> 11.2651 | G12: ='2018 DUOS Ex GST'!G12*1.1 -> 7.0301 | H12: ='2018 DUOS Ex GST'!H12*1.1 -> 0 | I12: ='2018 DUOS Ex GST'!I12*1.1 -> 0 | J12: ='2018 DUOS Ex GST'!J12*1.1 -> 0 | K12: ='2018 DUOS Ex GST'!K12*1.1 -> 0 | L12: ='2018 DUOS Ex GST'!L12*1.1 -> 0 | M12: ='2018 DUOS Ex GST'!M12*1.1 -> 0 | N12: ='2018 DUOS Ex GST'!N12*1.1 -> 0 | O12: ='2018 DUOS Ex GST'!O12*1.1 -> 0 | P12: ='2018 DUOS Ex GST'!P12*1.1 -> 0 | Q12: ='2018 DUOS Ex GST'!Q12*1.1 -> 0 | R12: NA | S12: >20 & <160
B13: Low voltage medium 2 rate 5 day* | C13: LVM2R5D* | E13: ='2018 DUOS Ex GST'!E13*1.1 -> 24.5333 | F13: ='2018 DUOS Ex GST'!F13*1.1 -> 11.913 | G13: ='2018 DUOS Ex GST'!G13*1.1 -> 8.9276 | H13: ='2018 DUOS Ex GST'!H13*1.1 -> 0 | I13: ='2018 DUOS Ex GST'!I13*1.1 -> 0 | J13: ='2018 DUOS Ex GST'!J13*1.1 -> 0 | K13: ='2018 DUOS Ex GST'!K13*1.1 -> 2.2242 | L13: ='2018 DUOS Ex GST'!L13*1.1 -> 0 | M13: ='2018 DUOS Ex GST'!M13*1.1 -> 0 | N13: ='2018 DUOS Ex GST'!N13*1.1 -> 0 | O13: ='2018 DUOS Ex GST'!O13*1.1 -> 0 | P13: ='2018 DUOS Ex GST'!P13*1.1 -> 0 | Q13: ='2018 DUOS Ex GST'!Q13*1.1 -> 0
B14: Low voltage medium 2 rate 7 day* | C14: LVM2R7D* | E14: ='2018 DUOS Ex GST'!E14*1.1 -> 26.1162 | F14: ='2018 DUOS Ex GST'!F14*1.1 -> 11.3377 | G14: ='2018 DUOS Ex GST'!G14*1.1 -> 8.7791 | H14: ='2018 DUOS Ex GST'!H14*1.1 -> 0 | I14: ='2018 DUOS Ex GST'!I14*1.1 -> 0 | J14: ='2018 DUOS Ex GST'!J14*1.1 -> 0 | K14: ='2018 DUOS Ex GST'!K14*1.1 -> 2.068 | L14: ='2018 DUOS Ex GST'!L14*1.1 -> 0 | M14: ='2018 DUOS Ex GST'!M14*1.1 -> 0 | N14: ='2018 DUOS Ex GST'!N14*1.1 -> 0 | O14: ='2018 DUOS Ex GST'!O14*1.1 -> 0 | P14: ='2018 DUOS Ex GST'!P14*1.1 -> 0 | Q14: ='2018 DUOS Ex GST'!Q14*1.1 -> 0
B15: Low voltage KW time of use* | C15: LVkWTOU* | E15: ='2018 DUOS Ex GST'!E15*1.1 -> 0 | F15: ='2018 DUOS Ex GST'!F15*1.1 -> 9.8043 | G15: ='2018 DUOS Ex GST'!G15*1.1 -> 5.7442 | H15: ='2018 DUOS Ex GST'!H15*1.1 -> 0 | I15: ='2018 DUOS Ex GST'!I15*1.1 -> 0 | J15: ='2018 DUOS Ex GST'!J15*1.1 -> 0 | K15: ='2018 DUOS Ex GST'!K15*1.1 -> 2.2825 | L15: ='2018 DUOS Ex GST'!L15*1.1 -> 0 | M15: ='2018 DUOS Ex GST'!M15*1.1 -> 46.948 | N15: ='2018 DUOS Ex GST'!N15*1.1 -> 0 | O15: ='2018 DUOS Ex GST'!O15*1.1 -> 0 | P15: ='2018 DUOS Ex GST'!P15*1.1 -> 0 | Q15: ='2018 DUOS Ex GST'!Q15*1.1 -> 0
B16: Low voltage KW time of use - HOT* | C16: LVkWTOUH* | E16: ='2018 DUOS Ex GST'!E16*1.1 -> 0 | F16: ='2018 DUOS Ex GST'!F16*1.1 -> 8.536 | G16: ='2018 DUOS Ex GST'!G16*1.1 -> 6.5615 | H16: ='2018 DUOS Ex GST'!H16*1.1 -> 0 | I16: ='2018 DUOS Ex GST'!I16*1.1 -> 0 | J16: ='2018 DUOS Ex GST'!J16*1.1 -> 0 | K16: ='2018 DUOS Ex GST'!K16*1.1 -> 1.9283 | L16: ='2018 DUOS Ex GST'!L16*1.1 -> 0 | M16: ='2018 DUOS Ex GST'!M16*1.1 -> 75.1201 | N16: ='2018 DUOS Ex GST'!N16*1.1 -> 0 | O16: ='2018 DUOS Ex GST'!O16*1.1 -> 0 | P16: ='2018 DUOS Ex GST'!P16*1.1 -> 0 | Q16: ='2018 DUOS Ex GST'!Q16*1.1 -> 0
B17: Low voltage large 1 rate* | C17: LVL1R* | E17: ='2018 DUOS Ex GST'!E17*1.1 -> 15.0051 | F17: ='2018 DUOS Ex GST'!F17*1.1 -> 6.8717 | G17: ='2018 DUOS Ex GST'!G17*1.1 -> 5.4219 | H17: ='2018 DUOS Ex GST'!H17*1.1 -> 0 | I17: ='2018 DUOS Ex GST'!I17*1.1 -> 0 | J17: ='2018 DUOS Ex GST'!J17*1.1 -> 0 | K17: ='2018 DUOS Ex GST'!K17*1.1 -> 0 | L17: ='2018 DUOS Ex GST'!L17*1.1 -> 0 | M17: ='2018 DUOS Ex GST'!M17*1.1 -> 0 | N17: ='2018 DUOS Ex GST'!N17*1.1 -> 0 | O17: ='2018 DUOS Ex GST'!O17*1.1 -> 0 | P17: ='2018 DUOS Ex GST'!P17*1.1 -> 0 | Q17: ='2018 DUOS Ex GST'!Q17*1.1 -> 0
B18: Low voltage large 2 rate* | C18: LVL2R* | E18: ='2018 DUOS Ex GST'!E18*1.1 -> 21.6458 | F18: ='2018 DUOS Ex GST'!F18*1.1 -> 10.758 | G18: ='2018 DUOS Ex GST'!G18*1.1 -> 8.5536 | H18: ='2018 DUOS Ex GST'!H18*1.1 -> 0 | I18: ='2018 DUOS Ex GST'!I18*1.1 -> 0 | J18: ='2018 DUOS Ex GST'!J18*1.1 -> 0 | K18: ='2018 DUOS Ex GST'!K18*1.1 -> 2.0471 | L18: ='2018 DUOS Ex GST'!L18*1.1 -> 0 | M18: ='2018 DUOS Ex GST'!M18*1.1 -> 0 | N18: ='2018 DUOS Ex GST'!N18*1.1 -> 0 | O18: ='2018 DUOS Ex GST'!O18*1.1 -> 0 | P18: ='2018 DUOS Ex GST'!P18*1.1 -> 0 | Q18: ='2018 DUOS Ex GST'!Q18*1.1 -> 0
B19: Low voltage large KVA time of use | C19: LVkVATOU | E19: ='2018 DUOS Ex GST'!E19*1.1 -> 0 | F19: ='2018 DUOS Ex GST'!F19*1.1 -> 1.5466 | G19: ='2018 DUOS Ex GST'!G19*1.1 -> 1.3112 | H19: ='2018 DUOS Ex GST'!H19*1.1 -> 0 | I19: ='2018 DUOS Ex GST'!I19*1.1 -> 0 | J19: ='2018 DUOS Ex GST'!J19*1.1 -> 0 | K19: ='2018 DUOS Ex GST'!K19*1.1 -> 1.298 | L19: ='2018 DUOS Ex GST'!L19*1.1 -> 15.6156 | M19: ='2018 DUOS Ex GST'!M19*1.1 -> 23.2958 | N19: ='2018 DUOS Ex GST'!N19*1.1 -> 0 | O19: ='2018 DUOS Ex GST'!O19*1.1 -> 0 | P19: ='2018 DUOS Ex GST'!P19*1.1 -> 0 | Q19: ='2018 DUOS Ex GST'!Q19*1.1 -> 0 | R19: >150 | S19: >400 | T19: 150
B20: Low voltage large KVA time of use - HOT* | C20: LVkVATOUH* | E20: ='2018 DUOS Ex GST'!E20*1.1 -> 0 | F20: ='2018 DUOS Ex GST'!F20*1.1 -> 0 | G20: ='2018 DUOS Ex GST'!G20*1.1 -> 0 | H20: ='2018 DUOS Ex GST'!H20*1.1 -> 0 | I20: ='2018 DUOS Ex GST'!I20*1.1 -> 0 | J20: ='2018 DUOS Ex GST'!J20*1.1 -> 0 | K20: ='2018 DUOS Ex GST'!K20*1.1 -> 0 | L20: ='2018 DUOS Ex GST'!L20*1.1 -> 0 | M20: ='2018 DUOS Ex GST'!M20*1.1 -> 0 | N20: ='2018 DUOS Ex GST'!N20*1.1 -> 0 | O20: ='2018 DUOS Ex GST'!O20*1.1 -> 0 | P20: ='2018 DUOS Ex GST'!P20*1.1 -> 0 | Q20: ='2018 DUOS Ex GST'!Q20*1.1 -> 0 | T20: 150
B21: High voltage KVA time of use | C21: HVkVATOU | E21: ='2018 DUOS Ex GST'!E21*1.1 -> 0 | F21: ='2018 DUOS Ex GST'!F21*1.1 -> 0.9273 | G21: ='2018 DUOS Ex GST'!G21*1.1 -> 0.8184 | H21: ='2018 DUOS Ex GST'!H21*1.1 -> 0 | I21: ='2018 DUOS Ex GST'!I21*1.1 -> 0 | J21: ='2018 DUOS Ex GST'!J21*1.1 -> 0 | K21: ='2018 DUOS Ex GST'!K21*1.1 -> 0.8041 | L21: ='2018 DUOS Ex GST'!L21*1.1 -> 9.4501 | M21: ='2018 DUOS Ex GST'!M21*1.1 -> 12.9778 | N21: ='2018 DUOS Ex GST'!N21*1.1 -> 0 | O21: ='2018 DUOS Ex GST'!O21*1.1 -> 0 | P21: ='2018 DUOS Ex GST'!P21*1.1 -> 0 | Q21: ='2018 DUOS Ex GST'!Q21*1.1 -> 0 | R21: >150 | S21: >400 | T21: 1150
B22: High voltage KVA time of use - HOT* | C22: HVkVATOUH* | E22: ='2018 DUOS Ex GST'!E22*1.1 -> 0 | F22: ='2018 DUOS Ex GST'!F22*1.1 -> 0 | G22: ='2018 DUOS Ex GST'!G22*1.1 -> 0 | H22: ='2018 DUOS Ex GST'!H22*1.1 -> 0 | I22: ='2018 DUOS Ex GST'!I22*1.1 -> 0 | J22: ='2018 DUOS Ex GST'!J22*1.1 -> 0 | K22: ='2018 DUOS Ex GST'!K22*1.1 -> 0 | L22: ='2018 DUOS Ex GST'!L22*1.1 -> 0 | M22: ='2018 DUOS Ex GST'!M22*1.1 -> 0 | N22: ='2018 DUOS Ex GST'!N22*1.1 -> 0 | O22: ='2018 DUOS Ex GST'!O22*1.1 -> 0 | P22: ='2018 DUOS Ex GST'!P22*1.1 -> 0 | Q22: ='2018 DUOS Ex GST'!Q22*1.1 -> 0 | T22: 1150
B23: Subtransmission KVA time of use* | C23: SubTkVATOU* | E23: ='2018 DUOS Ex GST'!E23*1.1 -> 0 | F23: ='2018 DUOS Ex GST'!F23*1.1 -> 0.528 | G23: ='2018 DUOS Ex GST'!G23*1.1 -> 0.4114 | H23: ='2018 DUOS Ex GST'!H23*1.1 -> 0 | I23: ='2018 DUOS Ex GST'!I23*1.1 -> 0 | J23: ='2018 DUOS Ex GST'!J23*1.1 -> 0 | K23: ='2018 DUOS Ex GST'!K23*1.1 -> 0.3564 | L23: ='2018 DUOS Ex GST'!L23*1.1 -> 0.9251 | M23: ='2018 DUOS Ex GST'!M23*1.1 -> 1.3552 | N23: ='2018 DUOS Ex GST'!N23*1.1 -> 0 | O23: ='2018 DUOS Ex GST'!O23*1.1 -> 0 | P23: ='2018 DUOS Ex GST'!P23*1.1 -> 0 | Q23: ='2018 DUOS Ex GST'!Q23*1.1 -> 0 | T23: 11100
B24: Time of Day | C24: TOD | D24: F | E24: ='2018 DUOS Ex GST'!E24*1.1 -> 7.183 | F24: ='2018 DUOS Ex GST'!F24*1.1 -> 17.2678 | G24: ='2018 DUOS Ex GST'!G24*1.1 -> 10.1772 | H24: ='2018 DUOS Ex GST'!H24*1.1 -> 0 | I24: ='2018 DUOS Ex GST'!I24*1.1 -> 4.8664 | J24: ='2018 DUOS Ex GST'!J24*1.1 -> 3.5849 | K24: ='2018 DUOS Ex GST'!K24*1.1 -> 3.3297 | L24: ='2018 DUOS Ex GST'!L24*1.1 -> 0 | M24: ='2018 DUOS Ex GST'!M24*1.1 -> 0 | N24: ='2018 DUOS Ex GST'!N24*1.1 -> 0 | O24: ='2018 DUOS Ex GST'!O24*1.1 -> 0 | P24: ='2018 DUOS Ex GST'!P24*1.1 -> 0 | Q24: ='2018 DUOS Ex GST'!Q24*1.1 -> 0 | R24: NA | S24: <20
B25: Time of Use | C25: TOU | D25: F | E25: ='2018 DUOS Ex GST'!E25*1.1 -> 0 | F25: ='2018 DUOS Ex GST'!F25*1.1 -> 10.6106 | G25: ='2018 DUOS Ex GST'!G25*1.1 -> 6.446 | H25: ='2018 DUOS Ex GST'!H25*1.1 -> 0 | I25: ='2018 DUOS Ex GST'!I25*1.1 -> 0 | J25: ='2018 DUOS Ex GST'!J25*1.1 -> 0 | K25: ='2018 DUOS Ex GST'!K25*1.1 -> 3.1119 | L25: ='2018 DUOS Ex GST'!L25*1.1 -> 0 | M25: ='2018 DUOS Ex GST'!M25*1.1 -> 46.0801 | N25: ='2018 DUOS Ex GST'!N25*1.1 -> 0 | O25: ='2018 DUOS Ex GST'!O25*1.1 -> 0 | P25: ='2018 DUOS Ex GST'!P25*1.1 -> 0 | Q25: ='2018 DUOS Ex GST'!Q25*1.1 -> 0 | R25: NA | S25: >20 & <160
B26: Time of Day 9pm off-peak | C26: TOD9 | D26: F | E26: ='2018 DUOS Ex GST'!E26*1.1 -> 7.4514 | F26: ='2018 DUOS Ex GST'!F26*1.1 -> 19.47 | G26: ='2018 DUOS Ex GST'!G26*1.1 -> 12.1 | H26: ='2018 DUOS Ex GST'!H26*1.1 -> 0 | I26: ='2018 DUOS Ex GST'!I26*1.1 -> 6.0357 | J26: ='2018 DUOS Ex GST'!J26*1.1 -> 4.8488 | K26: ='2018 DUOS Ex GST'!K26*1.1 -> 4.6123 | L26: ='2018 DUOS Ex GST'!L26*1.1 -> 0 | M26: ='2018 DUOS Ex GST'!M26*1.1 -> 0 | N26: ='2018 DUOS Ex GST'!N26*1.1 -> 0 | O26: ='2018 DUOS Ex GST'!O26*1.1 -> 0 | P26: ='2018 DUOS Ex GST'!P26*1.1 -> 0 | Q26: ='2018 DUOS Ex GST'!Q26*1.1 -> 0 | R26: NA | S26: <20
B27: Time of Day Flexible | C27: TODFLEX | D27: F | E27: ='2018 DUOS Ex GST'!E27*1.1 -> 8.0245 | F27: ='2018 DUOS Ex GST'!F27*1.1 -> 19.1554 | G27: ='2018 DUOS Ex GST'!G27*1.1 -> 10.9956 | H27: ='2018 DUOS Ex GST'!H27*1.1 -> 0 | I27: ='2018 DUOS Ex GST'!I27*1.1 -> 5.2019 | J27: ='2018 DUOS Ex GST'!J27*1.1 -> 5.2019 | K27: ='2018 DUOS Ex GST'!K27*1.1 -> 4.4099 | L27: ='2018 DUOS Ex GST'!L27*1.1 -> 0 | M27: ='2018 DUOS Ex GST'!M27*1.1 -> 0 | N27: ='2018 DUOS Ex GST'!N27*1.1 -> 0 | O27: ='2018 DUOS Ex GST'!O27*1.1 -> 0 | P27: ='2018 DUOS Ex GST'!P27*1.1 -> 0 | Q27: ='2018 DUOS Ex GST'!Q27*1.1 -> 0 | R27: Residential Customer
B28: Low voltage KW 1 rate | C28: RESKW1R | D28: F | E28: ='2018 DUOS Ex GST'!E28*1.1 -> 0 | F28: ='2018 DUOS Ex GST'!F28*1.1 -> 2.9832 | G28: ='2018 DUOS Ex GST'!G28*1.1 -> 2.9832 | H28: ='2018 DUOS Ex GST'!H28*1.1 -> 2.9832 | I28: ='2018 DUOS Ex GST'!I28*1.1 -> 2.9832 | J28: ='2018 DUOS Ex GST'!J28*1.1 -> 2.9832 | K28: ='2018 DUOS Ex GST'!K28*1.1 -> 2.9832 | L28: ='2018 DUOS Ex GST'!L28*1.1 -> 0 | M28: ='2018 DUOS Ex GST'!M28*1.1 -> 0 | N28: ='2018 DUOS Ex GST'!N28*1.1 -> 28.743 | O28: ='2018 DUOS Ex GST'!O28*1.1 -> 11.3421 | P28: ='2018 DUOS Ex GST'!P28*1.1 -> 0 | Q28: ='2018 DUOS Ex GST'!Q28*1.1 -> 0 | R28: NA | S28: <20 | U28: 1.5
B29: Low Voltage Medium kW Time of Use (Opt-in) | C29: LVMKWTOU | D29: F | E29: ='2018 DUOS Ex GST'!E29*1.1 -> 0 | F29: ='2018 DUOS Ex GST'!F29*1.1 -> 4.0546 | G29: ='2018 DUOS Ex GST'!G29*1.1 -> 4.0546 | H29: ='2018 DUOS Ex GST'!H29*1.1 -> 4.0546 | I29: ='2018 DUOS Ex GST'!I29*1.1 -> 4.0546 | J29: ='2018 DUOS Ex GST'!J29*1.1 -> 4.0546 | K29: ='2018 DUOS Ex GST'!K29*1.1 -> 4.0546 | L29: ='2018 DUOS Ex GST'!L29*1.1 -> 0 | M29: ='2018 DUOS Ex GST'!M29*1.1 -> 0 | N29: ='2018 DUOS Ex GST'!N29*1.1 -> 33.5412 | O29: ='2018 DUOS Ex GST'!O29*1.1 -> 22.3608 | P29: ='2018 DUOS Ex GST'!P29*1.1 -> 0 | Q29: ='2018 DUOS Ex GST'!Q29*1.1 -> 0 | R29: NA | S29: >20 & <400 | U29: 1.5
B30: Low Voltage Medium kW 1 rate (Mandatory) | C30: LVMKW1R | D30: F | E30: ='2018 DUOS Ex GST'!E30*1.1 -> 0 | F30: ='2018 DUOS Ex GST'!F30*1.1 -> 6.2227 | G30: ='2018 DUOS Ex GST'!G30*1.1 -> 6.2227 | H30: ='2018 DUOS Ex GST'!H30*1.1 -> 6.2227 | I30: ='2018 DUOS Ex GST'!I30*1.1 -> 6.2227 | J30: ='2018 DUOS Ex GST'!J30*1.1 -> 6.2227 | K30: ='2018 DUOS Ex GST'!K30*1.1 -> 6.2227 | L30: ='2018 DUOS Ex GST'!L30*1.1 -> 0 | M30: ='2018 DUOS Ex GST'!M30*1.1 -> 0 | N30: ='2018 DUOS Ex GST'!N30*1.1 -> 20.8505 | O30: ='2018 DUOS Ex GST'!O30*1.1 -> 13.8996 | P30: ='2018 DUOS Ex GST'!P30*1.1 -> 0 | Q30: ='2018 DUOS Ex GST'!Q30*1.1 -> 0 | R30: NA | S30: >40 & <400 | U30: 1.5
B33: * Tariff closed to premises not already taking supply under this tariff and new connections.
B34: ** Tariff only available in conjunction with the LVS1R tariff for new connections.
B35: Summer peak energy rates apply for period 1st November to 31st March (except TODFLEX which follows daylight savings periods) & RESKWTOU which applies from 1st December to 31st March.
B36: Non-summer peak energy rates apply for period 1st April to 31st October (except TODFLEX which follows non-daylight savings periods) & RESKWTOU which applies from 1st April to 30th November.
B37: PFIT (Premium Feed-In Tariff) is defined by an “F” added to the front of an existing distribution tariff ie. FTOD. The PFIT tariffs are closed to new connections.

Sheet 2018 TUOS Incl GST
B2: Schedule of Indicative Transmission Use of System (TUOS) Tariffs: 1 January 2018 (GSTInclusive)
E4: Network Tariff Component | R4: Eligibility (consumption/ category) | T4: Minimum Chargeable Rolling Demand | U4: Minimum Chargeable Demand
B5: Description | C5: Tariff Code | D5: PFIT (F) TFIT (T) | E5: Standing Charge (c/day) | F5: Summer Peak Energy (c/kWh) | G5: Non Summer Peak Energy Block 1 (c/kWh) | H5: Non Summer Peak Energy Block 2 (c/kWh) | I5: Summer Shoulder Energy (c/kWh) | J5: Non Summer Shoulder Energy (c/kWh) | K5: Off Peak Energy (c/kWh) | L5: Rolling Peak Demand c/kVA/day | M5: Summer Demand Incentive Charge c/kW/day or c/kVA/day | N5: Summer Demand Max kW c/KW/day | O5: Non-summer Demand Max kW c/KW/day | P5: Summer Demand Overrun Max kW c/KW/day | Q5: Non-summer Demand Overrun Max kW c/KW/day | R5: kVA | S5: MWh pa | T5: kVA | U5: kW
B6: Low voltage small 1 rate | C6: LVS1R | D6: F | E6: ='2018 TUOS Ex GST'!E6*1.1 -> 0 | F6: ='2018 TUOS Ex GST'!F6*1.1 -> 1.9305 | G6: ='2018 TUOS Ex GST'!G6*1.1 -> 1.6137 | H6: ='2018 TUOS Ex GST'!H6*1.1 -> 0 | I6: ='2018 TUOS Ex GST'!I6*1.1 -> 0 | J6: ='2018 TUOS Ex GST'!J6*1.1 -> 0 | K6: ='2018 TUOS Ex GST'!K6*1.1 -> 0 | L6: ='2018 TUOS Ex GST'!L6*1.1 -> 0 | M6: ='2018 TUOS Ex GST'!M6*1.1 -> 0 | N6: ='2018 TUOS Ex GST'!N6*1.1 -> 0 | O6: ='2018 TUOS Ex GST'!O6*1.1 -> 0 | P6: ='2018 TUOS Ex GST'!P6*1.1 -> 0 | Q6: ='2018 TUOS Ex GST'!Q6*1.1 -> 0 | R6: NA | S6: <20
B7: Low voltage small 2 rate* | C7: LVS2R* | E7: ='2018 TUOS Ex GST'!E7*1.1 -> 0 | F7: ='2018 TUOS Ex GST'!F7*1.1 -> 3.2417 | G7: ='2018 TUOS Ex GST'!G7*1.1 -> 2.5949 | H7: ='2018 TUOS Ex GST'!H7*1.1 -> 0 | I7: ='2018 TUOS Ex GST'!I7*1.1 -> 0 | J7: ='2018 TUOS Ex GST'!J7*1.1 -> 0 | K7: ='2018 TUOS Ex GST'!K7*1.1 -> 0 | L7: ='2018 TUOS Ex GST'!L7*1.1 -> 0 | M7: ='2018 TUOS Ex GST'!M7*1.1 -> 0 | N7: ='2018 TUOS Ex GST'!N7*1.1 -> 0 | O7: ='2018 TUOS Ex GST'!O7*1.1 -> 0 | P7: ='2018 TUOS Ex GST'!P7*1.1 -> 0 | Q7: ='2018 TUOS Ex GST'!Q7*1.1 -> 0
B8: Dedicated circuit** | C8: LVDed** | E8: ='2018 TUOS Ex GST'!E8*1.1 -> 0 | F8: ='2018 TUOS Ex GST'!F8*1.1 -> 0 | G8: ='2018 TUOS Ex GST'!G8*1.1 -> 0 | H8: ='2018 TUOS Ex GST'!H8*1.1 -> 0 | I8: ='2018 TUOS Ex GST'!I8*1.1 -> 0 | J8: ='2018 TUOS Ex GST'!J8*1.1 -> 0 | K8: ='2018 TUOS Ex GST'!K8*1.1 -> 0 | L8: ='2018 TUOS Ex GST'!L8*1.1 -> 0 | M8: ='2018 TUOS Ex GST'!M8*1.1 -> 0 | N8: ='2018 TUOS Ex GST'!N8*1.1 -> 0 | O8: ='2018 TUOS Ex GST'!O8*1.1 -> 0 | P8: ='2018 TUOS Ex GST'!P8*1.1 -> 0 | Q8: ='2018 TUOS Ex GST'!Q8*1.1 -> 0 | R8: NA | S8: <20 (on LVS1R)
B9: Unmetered supplies | C9: UnMet | E9: ='2018 TUOS Ex GST'!E9*1.1 -> 0 | F9: ='2018 TUOS Ex GST'!F9*1.1 -> 3.0371 | G9: ='2018 TUOS Ex GST'!G9*1.1 -> 2.4277 | H9: ='2018 TUOS Ex GST'!H9*1.1 -> 0 | I9: ='2018 TUOS Ex GST'!I9*1.1 -> 0 | J9: ='2018 TUOS Ex GST'!J9*1.1 -> 0 | K9: ='2018 TUOS Ex GST'!K9*1.1 -> 0 | L9: ='2018 TUOS Ex GST'!L9*1.1 -> 0 | M9: ='2018 TUOS Ex GST'!M9*1.1 -> 0 | N9: ='2018 TUOS Ex GST'!N9*1.1 -> 0 | O9: ='2018 TUOS Ex GST'!O9*1.1 -> 0 | P9: ='2018 TUOS Ex GST'!P9*1.1 -> 0 | Q9: ='2018 TUOS Ex GST'!Q9*1.1 -> 0
B10: Winter Energy Tariff* | C10: WET2Step* | E10: ='2018 TUOS Ex GST'!E10*1.1 -> 0 | F10: ='2018 TUOS Ex GST'!F10*1.1 -> 2.1604 | G10: ='2018 TUOS Ex GST'!G10*1.1 -> 1.7281 | H10: ='2018 TUOS Ex GST'!H10*1.1 -> 1.7281 | I10: ='2018 TUOS Ex GST'!I10*1.1 -> 0 | J10: ='2018 TUOS Ex GST'!J10*1.1 -> 0 | K10: ='2018 TUOS Ex GST'!K10*1.1 -> 0 | L10: ='2018 TUOS Ex GST'!L10*1.1 -> 0 | M10: ='2018 TUOS Ex GST'!M10*1.1 -> 0 | N10: ='2018 TUOS Ex GST'!N10*1.1 -> 0 | O10: ='2018 TUOS Ex GST'!O10*1.1 -> 0 | P10: ='2018 TUOS Ex GST'!P10*1.1 -> 0 | Q10: ='2018 TUOS Ex GST'!Q10*1.1 -> 0
B11: Reverse cycle airconditioning time of use* | C11: RCACkWTOU* | E11: ='2018 TUOS Ex GST'!E11*1.1 -> 0 | F11: ='2018 TUOS Ex GST'!F11*1.1 -> 0 | G11: ='2018 TUOS Ex GST'!G11*1.1 -> 0 | H11: ='2018 TUOS Ex GST'!H11*1.1 -> 0 | I11: ='2018 TUOS Ex GST'!I11*1.1 -> 0 | J11: ='2018 TUOS Ex GST'!J11*1.1 -> 0 | K11: ='2018 TUOS Ex GST'!K11*1.1 -> 0 | L11: ='2018 TUOS Ex GST'!L11*1.1 -> 0 | M11: ='2018 TUOS Ex GST'!M11*1.1 -> 0 | N11: ='2018 TUOS Ex GST'!N11*1.1 -> 0 | O11: ='2018 TUOS Ex GST'!O11*1.1 -> 0 | P11: ='2018 TUOS Ex GST'!P11*1.1 -> 0 | Q11: ='2018 TUOS Ex GST'!Q11*1.1 -> 0
B12: Low voltage medium 1 rate | C12: LVM1R | D12: F | E12: ='2018 TUOS Ex GST'!E12*1.1 -> 0 | F12: ='2018 TUOS Ex GST'!F12*1.1 -> 2.2682 | G12: ='2018 TUOS Ex GST'!G12*1.1 -> 1.8117 | H12: ='2018 TUOS Ex GST'!H12*1.1 -> 0 | I12: ='2018 TUOS Ex GST'!I12*1.1 -> 0 | J12: ='2018 TUOS Ex GST'!J12*1.1 -> 0 | K12: ='2018 TUOS Ex GST'!K12*1.1 -> 0 | L12: ='2018 TUOS Ex GST'!L12*1.1 -> 0 | M12: ='2018 TUOS Ex GST'!M12*1.1 -> 0 | N12: ='2018 TUOS Ex GST'!N12*1.1 -> 0 | O12: ='2018 TUOS Ex GST'!O12*1.1 -> 0 | P12: ='2018 TUOS Ex GST'!P12*1.1 -> 0 | Q12: ='2018 TUOS Ex GST'!Q12*1.1 -> 0 | R12: NA | S12: >20 & <160
B13: Low voltage medium 2 rate 5 day* | C13: LVM2R5D* | E13: ='2018 TUOS Ex GST'!E13*1.1 -> 0 | F13: ='2018 TUOS Ex GST'!F13*1.1 -> 1.9646 | G13: ='2018 TUOS Ex GST'!G13*1.1 -> 1.5708 | H13: ='2018 TUOS Ex GST'!H13*1.1 -> 0 | I13: ='2018 TUOS Ex GST'!I13*1.1 -> 0 | J13: ='2018 TUOS Ex GST'!J13*1.1 -> 0 | K13: ='2018 TUOS Ex GST'!K13*1.1 -> 0 | L13: ='2018 TUOS Ex GST'!L13*1.1 -> 0 | M13: ='2018 TUOS Ex GST'!M13*1.1 -> 0 | N13: ='2018 TUOS Ex GST'!N13*1.1 -> 0 | O13: ='2018 TUOS Ex GST'!O13*1.1 -> 0 | P13: ='2018 TUOS Ex GST'!P13*1.1 -> 0 | Q13: ='2018 TUOS Ex GST'!Q13*1.1 -> 0
B14: Low voltage medium 2 rate 7 day* | C14: LVM2R7D* | E14: ='2018 TUOS Ex GST'!E14*1.1 -> 0 | F14: ='2018 TUOS Ex GST'!F14*1.1 -> 2.3386 | G14: ='2018 TUOS Ex GST'!G14*1.1 -> 1.8722 | H14: ='2018 TUOS Ex GST'!H14*1.1 -> 0 | I14: ='2018 TUOS Ex GST'!I14*1.1 -> 0 | J14: ='2018 TUOS Ex GST'!J14*1.1 -> 0 | K14: ='2018 TUOS Ex GST'!K14*1.1 -> 0 | L14: ='2018 TUOS Ex GST'!L14*1.1 -> 0 | M14: ='2018 TUOS Ex GST'!M14*1.1 -> 0 | N14: ='2018 TUOS Ex GST'!N14*1.1 -> 0 | O14: ='2018 TUOS Ex GST'!O14*1.1 -> 0 | P14: ='2018 TUOS Ex GST'!P14*1.1 -> 0 | Q14: ='2018 TUOS Ex GST'!Q14*1.1 -> 0
B15: Low voltage KW time of use* | C15: LVkWTOU* | E15: ='2018 TUOS Ex GST'!E15*1.1 -> 0 | F15: ='2018 TUOS Ex GST'!F15*1.1 -> 1.8194 | G15: ='2018 TUOS Ex GST'!G15*1.1 -> 1.4553 | H15: ='2018 TUOS Ex GST'!H15*1.1 -> 0 | I15: ='2018 TUOS Ex GST'!I15*1.1 -> 0 | J15: ='2018 TUOS Ex GST'!J15*1.1 -> 0 | K15: ='2018 TUOS Ex GST'!K15*1.1 -> 0 | L15: ='2018 TUOS Ex GST'!L15*1.1 -> 0 | M15: ='2018 TUOS Ex GST'!M15*1.1 -> 8.4865 | N15: ='2018 TUOS Ex GST'!N15*1.1 -> 0 | O15: ='2018 TUOS Ex GST'!O15*1.1 -> 0 | P15: ='2018 TUOS Ex GST'!P15*1.1 -> 0 | Q15: ='2018 TUOS Ex GST'!Q15*1.1 -> 0
B16: Low voltage KW time of use - HOT* | C16: LVkWTOUH* | E16: ='2018 TUOS Ex GST'!E16*1.1 -> 0 | F16: ='2018 TUOS Ex GST'!F16*1.1 -> 0.9955 | G16: ='2018 TUOS Ex GST'!G16*1.1 -> 0.7953 | H16: ='2018 TUOS Ex GST'!H16*1.1 -> 0 | I16: ='2018 TUOS Ex GST'!I16*1.1 -> 0 | J16: ='2018 TUOS Ex GST'!J16*1.1 -> 0 | K16: ='2018 TUOS Ex GST'!K16*1.1 -> 0 | L16: ='2018 TUOS Ex GST'!L16*1.1 -> 0 | M16: ='2018 TUOS Ex GST'!M16*1.1 -> 8.9188 | N16: ='2018 TUOS Ex GST'!N16*1.1 -> 0 | O16: ='2018 TUOS Ex GST'!O16*1.1 -> 0 | P16: ='2018 TUOS Ex GST'!P16*1.1 -> 0 | Q16: ='2018 TUOS Ex GST'!Q16*1.1 -> 0
B17: Low voltage large 1 rate* | C17: LVL1R* | E17: ='2018 TUOS Ex GST'!E17*1.1 -> 0 | F17: ='2018 TUOS Ex GST'!F17*1.1 -> 2.2616 | G17: ='2018 TUOS Ex GST'!G17*1.1 -> 1.8073 | H17: ='2018 TUOS Ex GST'!H17*1.1 -> 0 | I17: ='2018 TUOS Ex GST'!I17*1.1 -> 0 | J17: ='2018 TUOS Ex GST'!J17*1.1 -> 0 | K17: ='2018 TUOS Ex GST'!K17*1.1 -> 0 | L17: ='2018 TUOS Ex GST'!L17*1.1 -> 0 | M17: ='2018 TUOS Ex GST'!M17*1.1 -> 0 | N17: ='2018 TUOS Ex GST'!N17*1.1 -> 0 | O17: ='2018 TUOS Ex GST'!O17*1.1 -> 0 | P17: ='2018 TUOS Ex GST'!P17*1.1 -> 0 | Q17: ='2018 TUOS Ex GST'!Q17*1.1 -> 0
B18: Low voltage large 2 rate* | C18: LVL2R* | E18: ='2018 TUOS Ex GST'!E18*1.1 -> 0 | F18: ='2018 TUOS Ex GST'!F18*1.1 -> 1.738 | G18: ='2018 TUOS Ex GST'!G18*1.1 -> 1.3926 | H18: ='2018 TUOS Ex GST'!H18*1.1 -> 0 | I18: ='2018 TUOS Ex GST'!I18*1.1 -> 0 | J18: ='2018 TUOS Ex GST'!J18*1.1 -> 0 | K18: ='2018 TUOS Ex GST'!K18*1.1 -> 0 | L18: ='2018 TUOS Ex GST'!L18*1.1 -> 0 | M18: ='2018 TUOS Ex GST'!M18*1.1 -> 0 | N18: ='2018 TUOS Ex GST'!N18*1.1 -> 0 | O18: ='2018 TUOS Ex GST'!O18*1.1 -> 0 | P18: ='2018 TUOS Ex GST'!P18*1.1 -> 0 | Q18: ='2018 TUOS Ex GST'!Q18*1.1 -> 0
B19: Low voltage large KVA time of use | C19: LVkVATOU | E19: ='2018 TUOS Ex GST'!E19*1.1 -> 0 | F19: ='2018 TUOS Ex GST'!F19*1.1 -> 0.9922 | G19: ='2018 TUOS Ex GST'!G19*1.1 -> 0.7953 | H19: ='2018 TUOS Ex GST'!H19*1.1 -> 0 | I19: ='2018 TUOS Ex GST'!I19*1.1 -> 0 | J19: ='2018 TUOS Ex GST'!J19*1.1 -> 0 | K19: ='2018 TUOS Ex GST'!K19*1.1 -> 0 | L19: ='2018 TUOS Ex GST'!L19*1.1 -> 4.0469 | M19: ='2018 TUOS Ex GST'!M19*1.1 -> 5.5319 | N19: ='2018 TUOS Ex GST'!N19*1.1 -> 0 | O19: ='2018 TUOS Ex GST'!O19*1.1 -> 0 | P19: ='2018 TUOS Ex GST'!P19*1.1 -> 0 | Q19: ='2018 TUOS Ex GST'!Q19*1.1 -> 0 | R19: >150 | S19: >400 | T19: 150
B20: Low voltage large KVA time of use - HOT* | C20: LVkVATOUH* | E20: ='2018 TUOS Ex GST'!E20*1.1 -> 0 | F20: ='2018 TUOS Ex GST'!F20*1.1 -> 0 | G20: ='2018 TUOS Ex GST'!G20*1.1 -> 0 | H20: ='2018 TUOS Ex GST'!H20*1.1 -> 0 | I20: ='2018 TUOS Ex GST'!I20*1.1 -> 0 | J20: ='2018 TUOS Ex GST'!J20*1.1 -> 0 | K20: ='2018 TUOS Ex GST'!K20*1.1 -> 0 | L20: ='2018 TUOS Ex GST'!L20*1.1 -> 0 | M20: ='2018 TUOS Ex GST'!M20*1.1 -> 0 | N20: ='2018 TUOS Ex GST'!N20*1.1 -> 0 | O20: ='2018 TUOS Ex GST'!O20*1.1 -> 0 | P20: ='2018 TUOS Ex GST'!P20*1.1 -> 0 | Q20: ='2018 TUOS Ex GST'!Q20*1.1 -> 0 | T20: 150
B21: High voltage KVA time of use | C21: HVkVATOU | E21: ='2018 TUOS Ex GST'!E21*1.1 -> 0 | F21: ='2018 TUOS Ex GST'!F21*1.1 -> 0.6963 | G21: ='2018 TUOS Ex GST'!G21*1.1 -> 0.5577 | H21: ='2018 TUOS Ex GST'!H21*1.1 -> 0 | I21: ='2018 TUOS Ex GST'!I21*1.1 -> 0 | J21: ='2018 TUOS Ex GST'!J21*1.1 -> 0 | K21: ='2018 TUOS Ex GST'!K21*1.1 -> 0 | L21: ='2018 TUOS Ex GST'!L21*1.1 -> 4.6343 | M21: ='2018 TUOS Ex GST'!M21*1.1 -> 4.8642 | N21: ='2018 TUOS Ex GST'!N21*1.1 -> 0 | O21: ='2018 TUOS Ex GST'!O21*1.1 -> 0 | P21: ='2018 TUOS Ex GST'!P21*1.1 -> 0 | Q21: ='2018 TUOS Ex GST'!Q21*1.1 -> 0 | R21: >150 | S21: >400 | T21: 1150
B22: High voltage KVA time of use - HOT* | C22: HVkVATOUH* | E22: ='2018 TUOS Ex GST'!E22*1.1 -> 0 | F22: ='2018 TUOS Ex GST'!F22*1.1 -> 0 | G22: ='2018 TUOS Ex GST'!G22*1.1 -> 0 | H22: ='2018 TUOS Ex GST'!H22*1.1 -> 0 | I22: ='2018 TUOS Ex GST'!I22*1.1 -> 0 | J22: ='2018 TUOS Ex GST'!J22*1.1 -> 0 | K22: ='2018 TUOS Ex GST'!K22*1.1 -> 0 | L22: ='2018 TUOS Ex GST'!L22*1.1 -> 0 | M22: ='2018 TUOS Ex GST'!M22*1.1 -> 0 | N22: ='2018 TUOS Ex GST'!N22*1.1 -> 0 | O22: ='2018 TUOS Ex GST'!O22*1.1 -> 0 | P22: ='2018 TUOS Ex GST'!P22*1.1 -> 0 | Q22: ='2018 TUOS Ex GST'!Q22*1.1 -> 0 | T22: 1150
B23: Subtransmission KVA time of use* | C23: SubTkVATOU* | E23: ='2018 TUOS Ex GST'!E23*1.1 -> 0 | F23: ='2018 TUOS Ex GST'!F23*1.1 -> 0.4697 | G23: ='2018 TUOS Ex GST'!G23*1.1 -> 0.3784 | H23: ='2018 TUOS Ex GST'!H23*1.1 -> 0 | I23: ='2018 TUOS Ex GST'!I23*1.1 -> 0 | J23: ='2018 TUOS Ex GST'!J23*1.1 -> 0 | K23: ='2018 TUOS Ex GST'!K23*1.1 -> 0 | L23: ='2018 TUOS Ex GST'!L23*1.1 -> 3.3319 | M23: ='2018 TUOS Ex GST'!M23*1.1 -> 4.0425 | N23: ='2018 TUOS Ex GST'!N23*1.1 -> 0 | O23: ='2018 TUOS Ex GST'!O23*1.1 -> 0 | P23: ='2018 TUOS Ex GST'!P23*1.1 -> 0 | Q23: ='2018 TUOS Ex GST'!Q23*1.1 -> 0 | T23: 11100
B24: Time of Day | C24: TOD | D24: F | E24: ='2018 TUOS Ex GST'!E24*1.1 -> 0 | F24: ='2018 TUOS Ex GST'!F24*1.1 -> 3.1273 | G24: ='2018 TUOS Ex GST'!G24*1.1 -> 2.6543 | H24: ='2018 TUOS Ex GST'!H24*1.1 -> 0 | I24: ='2018 TUOS Ex GST'!I24*1.1 -> 2.6543 | J24: ='2018 TUOS Ex GST'!J24*1.1 -> 2.3441 | K24: ='2018 TUOS Ex GST'!K24*1.1 -> 0 | L24: ='2018 TUOS Ex GST'!L24*1.1 -> 0 | M24: ='2018 TUOS Ex GST'!M24*1.1 -> 0 | N24: ='2018 TUOS Ex GST'!N24*1.1 -> 0 | O24: ='2018 TUOS Ex GST'!O24*1.1 -> 0 | P24: ='2018 TUOS Ex GST'!P24*1.1 -> 0 | Q24: ='2018 TUOS Ex GST'!Q24*1.1 -> 0 | R24: NA | S24: <20
B25: Time of Use | C25: TOU | D25: F | E25: ='2018 TUOS Ex GST'!E25*1.1 -> 0 | F25: ='2018 TUOS Ex GST'!F25*1.1 -> 2.3232 | G25: ='2018 TUOS Ex GST'!G25*1.1 -> 1.067 | H25: ='2018 TUOS Ex GST'!H25*1.1 -> 0 | I25: ='2018 TUOS Ex GST'!I25*1.1 -> 0 | J25: ='2018 TUOS Ex GST'!J25*1.1 -> 0 | K25: ='2018 TUOS Ex GST'!K25*1.1 -> 0 | L25: ='2018 TUOS Ex GST'!L25*1.1 -> 0 | M25: ='2018 TUOS Ex GST'!M25*1.1 -> 6.0874 | N25: ='2018 TUOS Ex GST'!N25*1.1 -> 0 | O25: ='2018 TUOS Ex GST'!O25*1.1 -> 0 | P25: ='2018 TUOS Ex GST'!P25*1.1 -> 0 | Q25: ='2018 TUOS Ex GST'!Q25*1.1 -> 0 | R25: NA | S25: >20 & <160
B26: Time of Day 9pm off-peak | C26: TOD9 | D26: F | E26: ='2018 TUOS Ex GST'!E26*1.1 -> 0 | F26: ='2018 TUOS Ex GST'!F26*1.1 -> 4.1965 | G26: ='2018 TUOS Ex GST'!G26*1.1 -> 3.9017 | H26: ='2018 TUOS Ex GST'!H26*1.1 -> 0 | I26: ='2018 TUOS Ex GST'!I26*1.1 -> 3.9017 | J26: ='2018 TUOS Ex GST'!J26*1.1 -> 3.707 | K26: ='2018 TUOS Ex GST'!K26*1.1 -> 0 | L26: ='2018 TUOS Ex GST'!L26*1.1 -> 0 | M26: ='2018 TUOS Ex GST'!M26*1.1 -> 0 | N26: ='2018 TUOS Ex GST'!N26*1.1 -> 0 | O26: ='2018 TUOS Ex GST'!O26*1.1 -> 0 | P26: ='2018 TUOS Ex GST'!P26*1.1 -> 0 | Q26: ='2018 TUOS Ex GST'!Q26*1.1 -> 0 | R26: NA | S26: <20
B27: Time of Day Flexible | C27: TODFLEX | D27: F | E27: ='2018 TUOS Ex GST'!E27*1.1 -> 0 | F27: ='2018 TUOS Ex GST'!F27*1.1 -> 3.5486 | G27: ='2018 TUOS Ex GST'!G27*1.1 -> 3.3099 | H27: ='2018 TUOS Ex GST'!H27*1.1 -> 0 | I27: ='2018 TUOS Ex GST'!I27*1.1 -> 1.7732 | J27: ='2018 TUOS Ex GST'!J27*1.1 -> 1.5642 | K27: ='2018 TUOS Ex GST'!K27*1.1 -> 0 | L27: ='2018 TUOS Ex GST'!L27*1.1 -> 0 | M27: ='2018 TUOS Ex GST'!M27*1.1 -> 0 | N27: ='2018 TUOS Ex GST'!N27*1.1 -> 0 | O27: ='2018 TUOS Ex GST'!O27*1.1 -> 0 | P27: ='2018 TUOS Ex GST'!P27*1.1 -> 0 | Q27: ='2018 TUOS Ex GST'!Q27*1.1 -> 0 | R27: Residential Customer
B28: Low voltage KW 1 rate | C28: RESKW1R | D28: F | E28: ='2018 TUOS Ex GST'!E28*1.1 -> 0 | F28: ='2018 TUOS Ex GST'!F28*1.1 -> 0.6523 | G28: ='2018 TUOS Ex GST'!G28*1.1 -> 0.6523 | H28: ='2018 TUOS Ex GST'!H28*1.1 -> 0.6523 | I28: ='2018 TUOS Ex GST'!I28*1.1 -> 0.6523 | J28: ='2018 TUOS Ex GST'!J28*1.1 -> 0.6523 | K28: ='2018 TUOS Ex GST'!K28*1.1 -> 0.6523 | L28: ='2018 TUOS Ex GST'!L28*1.1 -> 0 | M28: ='2018 TUOS Ex GST'!M28*1.1 -> 0 | N28: ='2018 TUOS Ex GST'!N28*1.1 -> 4.8851 | O28: ='2018 TUOS Ex GST'!O28*1.1 -> 3.1757 | P28: ='2018 TUOS Ex GST'!P28*1.1 -> 0 | Q28: ='2018 TUOS Ex GST'!Q28*1.1 -> 0 | R28: NA | S28: <20 | U28: 1.5
B29: Low Voltage Medium kW Time of Use (Opt-in) | C29: LVMKWTOU | D29: F | E29: ='2018 TUOS Ex GST'!E29*1.1 -> 0 | F29: ='2018 TUOS Ex GST'!F29*1.1 -> 0.825 | G29: ='2018 TUOS Ex GST'!G29*1.1 -> 0.825 | H29: ='2018 TUOS Ex GST'!H29*1.1 -> 0.825 | I29: ='2018 TUOS Ex GST'!I29*1.1 -> 0.825 | J29: ='2018 TUOS Ex GST'!J29*1.1 -> 0.825 | K29: ='2018 TUOS Ex GST'!K29*1.1 -> 0.825 | L29: ='2018 TUOS Ex GST'!L29*1.1 -> 0 | M29: ='2018 TUOS Ex GST'!M29*1.1 -> 0 | N29: ='2018 TUOS Ex GST'!N29*1.1 -> 6.8178 | O29: ='2018 TUOS Ex GST'!O29*1.1 -> 4.5452 | P29: ='2018 TUOS Ex GST'!P29*1.1 -> 0 | Q29: ='2018 TUOS Ex GST'!Q29*1.1 -> 0 | R29: NA | S29: >20 & <400 | U29: 1.5
B30: Low Voltage Medium kW 1 rate (Mandatory) | C30: LVMKW1R | D30: F | E30: ='2018 TUOS Ex GST'!E30*1.1 -> 0 | F30: ='2018 TUOS Ex GST'!F30*1.1 -> 1.2419 | G30: ='2018 TUOS Ex GST'!G30*1.1 -> 1.2419 | H30: ='2018 TUOS Ex GST'!H30*1.1 -> 1.2419 | I30: ='2018 TUOS Ex GST'!I30*1.1 -> 1.2419 | J30: ='2018 TUOS Ex GST'!J30*1.1 -> 1.2419 | K30: ='2018 TUOS Ex GST'!K30*1.1 -> 1.2419 | L30: ='2018 TUOS Ex GST'!L30*1.1 -> 0 | M30: ='2018 TUOS Ex GST'!M30*1.1 -> 0 | N30: ='2018 TUOS Ex GST'!N30*1.1 -> 4.1635 | O30: ='2018 TUOS Ex GST'!O30*1.1 -> 2.7753 | P30: ='2018 TUOS Ex GST'!P30*1.1 -> 0 | Q30: ='2018 TUOS Ex GST'!Q30*1.1 -> 0 | R30: NA | S30: >40 & <400 | U30: 1.5
B33: * Tariff closed to premises not already taking supply under this tariff and new connections.
B34: ** Tariff only available in conjunction with the LVS1R tariff for new connections.
B35: Summer peak energy rates apply for period 1st November to 31st March (except TODFLEX which follows daylight savings periods) & RESKWTOU which applies from 1st December to 31st March.
B36: Non-summer peak energy rates apply for period 1st April to 31st October (except TODFLEX which follows non-daylight savings periods) & RESKWTOU which applies from 1st April to 30th November.
B37: PFIT (Premium Feed-In Tariff) is defined by an “F” added to the front of an existing distribution tariff ie. FTOD. The PFIT tariffs are closed to new connections.

Sheet 2018 NUOS Incl GST
B2: Schedule of Indicative Network Use of System (NUOS) Tariffs: 1 January 2018 (GST Exclusive)
E4: Network Tariff Component | R4: Eligibility (consumption/ category) | T4: Minimum Chargeable Rolling Demand | U4: Minimum Chargeable Demand
B5: Description | C5: Tariff Code | D5: PFIT (F) TFIT (T) | E5: Standing Charge (c/day) | F5: Summer Peak Energy (c/kWh) | G5: Non Summer Peak Energy Block 1 (c/kWh) | H5: Non Summer Peak Energy Block 2 (c/kWh) | I5: Summer Shoulder Energy (c/kWh) | J5: Non Summer Shoulder Energy (c/kWh) | K5: Off Peak Energy (c/kWh) | L5: Rolling Peak Demand c/kVA/day | M5: Summer Demand Incentive Charge c/kW/day or c/kVA/day | N5: Summer Demand Max kW c/KW/day | O5: Non-summer Demand Max kW c/KW/day | P5: Summer Demand Overrun Max kW c/KW/day | Q5: Non-summer Demand Overrun Max kW c/KW/day | R5: kVA | S5: MWh pa | T5: kVA | U5: kW
B6: Low voltage small 1 rate | C6: LVS1R | D6: F | E6: ='2018 DUOS Incl GST'!E6+'2018 TUOS Incl GST'!E6 -> 7.5515 | F6: ='2018 DUOS Incl GST'!F6+'2018 TUOS Incl GST'!F6 -> 11.242 | G6: ='2018 DUOS Incl GST'!G6+'2018 TUOS Incl GST'!G6 -> 7.6076 | H6: ='2018 DUOS Incl GST'!H6+'2018 TUOS Incl GST'!H6 -> 0 | I6: ='2018 DUOS Incl GST'!I6+'2018 TUOS Incl GST'!I6 -> 0 | J6: ='2018 DUOS Incl GST'!J6+'2018 TUOS Incl GST'!J6 -> 0 | K6: ='2018 DUOS Incl GST'!K6+'2018 TUOS Incl GST'!K6 -> 0 | L6: ='2018 DUOS Incl GST'!L6+'2018 TUOS Incl GST'!L6 -> 0 | M6: ='2018 DUOS Incl GST'!M6+'2018 TUOS Incl GST'!M6 -> 0 | N6: ='2018 DUOS Incl GST'!N6+'2018 TUOS Incl GST'!N6 -> 0 | O6: ='2018 DUOS Incl GST'!O6+'2018 TUOS Incl GST'!O6 -> 0 | P6: ='2018 DUOS Incl GST'!P6+'2018 TUOS Incl GST'!P6 -> 0 | Q6: ='2018 DUOS Incl GST'!Q6+'2018 TUOS Incl GST'!Q6 -> 0 | R6: NA | S6: <20
B7: Low voltage small 2 rate* | C7: LVS2R* | E7: ='2018 DUOS Incl GST'!E7+'2018 TUOS Incl GST'!E7 -> 15.422 | F7: ='2018 DUOS Incl GST'!F7+'2018 TUOS Incl GST'!F7 -> 14.311 | G7: ='2018 DUOS Incl GST'!G7+'2018 TUOS Incl GST'!G7 -> 10.9901 | H7: ='2018 DUOS Incl GST'!H7+'2018 TUOS Incl GST'!H7 -> 0 | I7: ='2018 DUOS Incl GST'!I7+'2018 TUOS Incl GST'!I7 -> 0 | J7: ='2018 DUOS Incl GST'!J7+'2018 TUOS Incl GST'!J7 -> 0 | K7: ='2018 DUOS Incl GST'!K7+'2018 TUOS Incl GST'!K7 -> 1.9195 | L7: ='2018 DUOS Incl GST'!L7+'2018 TUOS Incl GST'!L7 -> 0 | M7: ='2018 DUOS Incl GST'!M7+'2018 TUOS Incl GST'!M7 -> 0 | N7: ='2018 DUOS Incl GST'!N7+'2018 TUOS Incl GST'!N7 -> 0 | O7: ='2018 DUOS Incl GST'!O7+'2018 TUOS Incl GST'!O7 -> 0 | P7: ='2018 DUOS Incl GST'!P7+'2018 TUOS Incl GST'!P7 -> 0 | Q7: ='2018 DUOS Incl GST'!Q7+'2018 TUOS Incl GST'!Q7 -> 0
B8: Dedicated circuit** | C8: LVDed** | E8: ='2018 DUOS Incl GST'!E8+'2018 TUOS Incl GST'!E8 -> 0 | F8: ='2018 DUOS Incl GST'!F8+'2018 TUOS Incl GST'!F8 -> 0 | G8: ='2018 DUOS Incl GST'!G8+'2018 TUOS Incl GST'!G8 -> 0 | H8: ='2018 DUOS Incl GST'!H8+'2018 TUOS Incl GST'!H8 -> 0 | I8: ='2018 DUOS Incl GST'!I8+'2018 TUOS Incl GST'!I8 -> 0 | J8: ='2018 DUOS Incl GST'!J8+'2018 TUOS Incl GST'!J8 -> 0 | K8: ='2018 DUOS Incl GST'!K8+'2018 TUOS Incl GST'!K8 -> 2.1241 | L8: ='2018 DUOS Incl GST'!L8+'2018 TUOS Incl GST'!L8 -> 0 | M8: ='2018 DUOS Incl GST'!M8+'2018 TUOS Incl GST'!M8 -> 0 | N8: ='2018 DUOS Incl GST'!N8+'2018 TUOS Incl GST'!N8 -> 0 | O8: ='2018 DUOS Incl GST'!O8+'2018 TUOS Incl GST'!O8 -> 0 | P8: ='2018 DUOS Incl GST'!P8+'2018 TUOS Incl GST'!P8 -> 0 | Q8: ='2018 DUOS Incl GST'!Q8+'2018 TUOS Incl GST'!Q8 -> 0 | R8: NA | S8: <20 (on LVS1R)
B9: Unmetered supplies | C9: UnMet | E9: ='2018 DUOS Incl GST'!E9+'2018 TUOS Incl GST'!E9 -> 0 | F9: ='2018 DUOS Incl GST'!F9+'2018 TUOS Incl GST'!F9 -> 12.342 | G9: ='2018 DUOS Incl GST'!G9+'2018 TUOS Incl GST'!G9 -> 9.2345 | H9: ='2018 DUOS Incl GST'!H9+'2018 TUOS Incl GST'!H9 -> 0 | I9: ='2018 DUOS Incl GST'!I9+'2018 TUOS Incl GST'!I9 -> 0 | J9: ='2018 DUOS Incl GST'!J9+'2018 TUOS Incl GST'!J9 -> 0 | K9: ='2018 DUOS Incl GST'!K9+'2018 TUOS Incl GST'!K9 -> 1.6775 | L9: ='2018 DUOS Incl GST'!L9+'2018 TUOS Incl GST'!L9 -> 0 | M9: ='2018 DUOS Incl GST'!M9+'2018 TUOS Incl GST'!M9 -> 0 | N9: ='2018 DUOS Incl GST'!N9+'2018 TUOS Incl GST'!N9 -> 0 | O9: ='2018 DUOS Incl GST'!O9+'2018 TUOS Incl GST'!O9 -> 0 | P9: ='2018 DUOS Incl GST'!P9+'2018 TUOS Incl GST'!P9 -> 0 | Q9: ='2018 DUOS Incl GST'!Q9+'2018 TUOS Incl GST'!Q9 -> 0
B10: Winter Energy Tariff* | C10: WET2Step* | E10: ='2018 DUOS Incl GST'!E10+'2018 TUOS Incl GST'!E10 -> 9.7251 | F10: ='2018 DUOS Incl GST'!F10+'2018 TUOS Incl GST'!F10 -> 9.4127 | G10: ='2018 DUOS Incl GST'!G10+'2018 TUOS Incl GST'!G10 -> 7.1016 | H10: ='2018 DUOS Incl GST'!H10+'2018 TUOS Incl GST'!H10 -> 3.7422 | I10: ='2018 DUOS Incl GST'!I10+'2018 TUOS Incl GST'!I10 -> 0 | J10: ='2018 DUOS Incl GST'!J10+'2018 TUOS Incl GST'!J10 -> 0 | K10: ='2018 DUOS Incl GST'!K10+'2018 TUOS Incl GST'!K10 -> 0 | L10: ='2018 DUOS Incl GST'!L10+'2018 TUOS Incl GST'!L10 -> 0 | M10: ='2018 DUOS Incl GST'!M10+'2018 TUOS Incl GST'!M10 -> 0 | N10: ='2018 DUOS Incl GST'!N10+'2018 TUOS Incl GST'!N10 -> 0 | O10: ='2018 DUOS Incl GST'!O10+'2018 TUOS Incl GST'!O10 -> 0 | P10: ='2018 DUOS Incl GST'!P10+'2018 TUOS Incl GST'!P10 -> 0 | Q10: ='2018 DUOS Incl GST'!Q10+'2018 TUOS Incl GST'!Q10 -> 0
B11: Reverse cycle airconditioning time of use* | C11: RCACkWTOU* | E11: ='2018 DUOS Incl GST'!E11+'2018 TUOS Incl GST'!E11 -> 0 | F11: ='2018 DUOS Incl GST'!F11+'2018 TUOS Incl GST'!F11 -> 0 | G11: ='2018 DUOS Incl GST'!G11+'2018 TUOS Incl GST'!G11 -> 0 | H11: ='2018 DUOS Incl GST'!H11+'2018 TUOS Incl GST'!H11 -> 0 | I11: ='2018 DUOS Incl GST'!I11+'2018 TUOS Incl GST'!I11 -> 0 | J11: ='2018 DUOS Incl GST'!J11+'2018 TUOS Incl GST'!J11 -> 0 | K11: ='2018 DUOS Incl GST'!K11+'2018 TUOS Incl GST'!K11 -> 0 | L11: ='2018 DUOS Incl GST'!L11+'2018 TUOS Incl GST'!L11 -> 0 | M11: ='2018 DUOS Incl GST'!M11+'2018 TUOS Incl GST'!M11 -> 0 | N11: ='2018 DUOS Incl GST'!N11+'2018 TUOS Incl GST'!N11 -> 0 | O11: ='2018 DUOS Incl GST'!O11+'2018 TUOS Incl GST'!O11 -> 0 | P11: ='2018 DUOS Incl GST'!P11+'2018 TUOS Incl GST'!P11 -> 0 | Q11: ='2018 DUOS Incl GST'!Q11+'2018 TUOS Incl GST'!Q11 -> 0
B12: Low voltage medium 1 rate | C12: LVM1R | D12: F | E12: ='2018 DUOS Incl GST'!E12+'2018 TUOS Incl GST'!E12 -> 12.8172 | F12: ='2018 DUOS Incl GST'!F12+'2018 TUOS Incl GST'!F12 -> 13.5333 | G12: ='2018 DUOS Incl GST'!G12+'2018 TUOS Incl GST'!G12 -> 8.8418 | H12: ='2018 DUOS Incl GST'!H12+'2018 TUOS Incl GST'!H12 -> 0 | I12: ='2018 DUOS Incl GST'!I12+'2018 TUOS Incl GST'!I12 -> 0 | J12: ='2018 DUOS Incl GST'!J12+'2018 TUOS Incl GST'!J12 -> 0 | K12: ='2018 DUOS Incl GST'!K12+'2018 TUOS Incl GST'!K12 -> 0 | L12: ='2018 DUOS Incl GST'!L12+'2018 TUOS Incl GST'!L12 -> 0 | M12: ='2018 DUOS Incl GST'!M12+'2018 TUOS Incl GST'!M12 -> 0 | N12: ='2018 DUOS Incl GST'!N12+'2018 TUOS Incl GST'!N12 -> 0 | O12: ='2018 DUOS Incl GST'!O12+'2018 TUOS Incl GST'!O12 -> 0 | P12: ='2018 DUOS Incl GST'!P12+'2018 TUOS Incl GST'!P12 -> 0 | Q12: ='2018 DUOS Incl GST'!Q12+'2018 TUOS Incl GST'!Q12 -> 0 | R12: NA | S12: >20 & <160
B13: Low voltage medium 2 rate 5 day* | C13: LVM2R5D* | E13: ='2018 DUOS Incl GST'!E13+'2018 TUOS Incl GST'!E13 -> 24.5333 | F13: ='2018 DUOS Incl GST'!F13+'2018 TUOS Incl GST'!F13 -> 13.8776 | G13: ='2018 DUOS Incl GST'!G13+'2018 TUOS Incl GST'!G13 -> 10.4984 | H13: ='2018 DUOS Incl GST'!H13+'2018 TUOS Incl GST'!H13 -> 0 | I13: ='2018 DUOS Incl GST'!I13+'2018 TUOS Incl GST'!I13 -> 0 | J13: ='2018 DUOS Incl GST'!J13+'2018 TUOS Incl GST'!J13 -> 0 | K13: ='2018 DUOS Incl GST'!K13+'2018 TUOS Incl GST'!K13 -> 2.2242 | L13: ='2018 DUOS Incl GST'!L13+'2018 TUOS Incl GST'!L13 -> 0 | M13: ='2018 DUOS Incl GST'!M13+'2018 TUOS Incl GST'!M13 -> 0 | N13: ='2018 DUOS Incl GST'!N13+'2018 TUOS Incl GST'!N13 -> 0 | O13: ='2018 DUOS Incl GST'!O13+'2018 TUOS Incl GST'!O13 -> 0 | P13: ='2018 DUOS Incl GST'!P13+'2018 TUOS Incl GST'!P13 -> 0 | Q13: ='2018 DUOS Incl GST'!Q13+'2018 TUOS Incl GST'!Q13 -> 0
B14: Low voltage medium 2 rate 7 day* | C14: LVM2R7D* | E14: ='2018 DUOS Incl GST'!E14+'2018 TUOS Incl GST'!E14 -> 26.1162 | F14: ='2018 DUOS Incl GST'!F14+'2018 TUOS Incl GST'!F14 -> 13.6763 | G14: ='2018 DUOS Incl GST'!G14+'2018 TUOS Incl GST'!G14 -> 10.6513 | H14: ='2018 DUOS Incl GST'!H14+'2018 TUOS Incl GST'!H14 -> 0 | I14: ='2018 DUOS Incl GST'!I14+'2018 TUOS Incl GST'!I14 -> 0 | J14: ='2018 DUOS Incl GST'!J14+'2018 TUOS Incl GST'!J14 -> 0 | K14: ='2018 DUOS Incl GST'!K14+'2018 TUOS Incl GST'!K14 -> 2.068 | L14: ='2018 DUOS Incl GST'!L14+'2018 TUOS Incl GST'!L14 -> 0 | M14: ='2018 DUOS Incl GST'!M14+'2018 TUOS Incl GST'!M14 -> 0 | N14: ='2018 DUOS Incl GST'!N14+'2018 TUOS Incl GST'!N14 -> 0 | O14: ='2018 DUOS Incl GST'!O14+'2018 TUOS Incl GST'!O14 -> 0 | P14: ='2018 DUOS Incl GST'!P14+'2018 TUOS Incl GST'!P14 -> 0 | Q14: ='2018 DUOS Incl GST'!Q14+'2018 TUOS Incl GST'!Q14 -> 0
B15: Low voltage KW time of use* | C15: LVkWTOU* | E15: ='2018 DUOS Incl GST'!E15+'2018 TUOS Incl GST'!E15 -> 0 | F15: ='2018 DUOS Incl GST'!F15+'2018 TUOS Incl GST'!F15 -> 11.6237 | G15: ='2018 DUOS Incl GST'!G15+'2018 TUOS Incl GST'!G15 -> 7.1995 | H15: ='2018 DUOS Incl GST'!H15+'2018 TUOS Incl GST'!H15 -> 0 | I15: ='2018 DUOS Incl GST'!I15+'2018 TUOS Incl GST'!I15 -> 0 | J15: ='2018 DUOS Incl GST'!J15+'2018 TUOS Incl GST'!J15 -> 0 | K15: ='2018 DUOS Incl GST'!K15+'2018 TUOS Incl GST'!K15 -> 2.2825 | L15: ='2018 DUOS Incl GST'!L15+'2018 TUOS Incl GST'!L15 -> 0 | M15: ='2018 DUOS Incl GST'!M15+'2018 TUOS Incl GST'!M15 -> 55.4345 | N15: ='2018 DUOS Incl GST'!N15+'2018 TUOS Incl GST'!N15 -> 0 | O15: ='2018 DUOS Incl GST'!O15+'2018 TUOS Incl GST'!O15 -> 0 | P15: ='2018 DUOS Incl GST'!P15+'2018 TUOS Incl GST'!P15 -> 0 | Q15: ='2018 DUOS Incl GST'!Q15+'2018 TUOS Incl GST'!Q15 -> 0
B16: Low voltage KW time of use - HOT* | C16: LVkWTOUH* | E16: ='2018 DUOS Incl GST'!E16+'2018 TUOS Incl GST'!E16 -> 0 | F16: ='2018 DUOS Incl GST'!F16+'2018 TUOS Incl GST'!F16 -> 9.5315 | G16: ='2018 DUOS Incl GST'!G16+'2018 TUOS Incl GST'!G16 -> 7.3568 | H16: ='2018 DUOS Incl GST'!H16+'2018 TUOS Incl GST'!H16 -> 0 | I16: ='2018 DUOS Incl GST'!I16+'2018 TUOS Incl GST'!I16 -> 0 | J16: ='2018 DUOS Incl GST'!J16+'2018 TUOS Incl GST'!J16 -> 0 | K16: ='2018 DUOS Incl GST'!K16+'2018 TUOS Incl GST'!K16 -> 1.9283 | L16: ='2018 DUOS Incl GST'!L16+'2018 TUOS Incl GST'!L16 -> 0 | M16: ='2018 DUOS Incl GST'!M16+'2018 TUOS Incl GST'!M16 -> 84.0389 | N16: ='2018 DUOS Incl GST'!N16+'2018 TUOS Incl GST'!N16 -> 0 | O16: ='2018 DUOS Incl GST'!O16+'2018 TUOS Incl GST'!O16 -> 0 | P16: ='2018 DUOS Incl GST'!P16+'2018 TUOS Incl GST'!P16 -> 0 | Q16: ='2018 DUOS Incl GST'!Q16+'2018 TUOS Incl GST'!Q16 -> 0
B17: Low voltage large 1 rate* | C17: LVL1R* | E17: ='2018 DUOS Incl GST'!E17+'2018 TUOS Incl GST'!E17 -> 15.0051 | F17: ='2018 DUOS Incl GST'!F17+'2018 TUOS Incl GST'!F17 -> 9.1333 | G17: ='2018 DUOS Incl GST'!G17+'2018 TUOS Incl GST'!G17 -> 7.2292 | H17: ='2018 DUOS Incl GST'!H17+'2018 TUOS Incl GST'!H17 -> 0 | I17: ='2018 DUOS Incl GST'!I17+'2018 TUOS Incl GST'!I17 -> 0 | J17: ='2018 DUOS Incl GST'!J17+'2018 TUOS Incl GST'!J17 -> 0 | K17: ='2018 DUOS Incl GST'!K17+'2018 TUOS Incl GST'!K17 -> 0 | L17: ='2018 DUOS Incl GST'!L17+'2018 TUOS Incl GST'!L17 -> 0 | M17: ='2018 DUOS Incl GST'!M17+'2018 TUOS Incl GST'!M17 -> 0 | N17: ='2018 DUOS Incl GST'!N17+'2018 TUOS Incl GST'!N17 -> 0 | O17: ='2018 DUOS Incl GST'!O17+'2018 TUOS Incl GST'!O17 -> 0 | P17: ='2018 DUOS Incl GST'!P17+'2018 TUOS Incl GST'!P17 -> 0 | Q17: ='2018 DUOS Incl GST'!Q17+'2018 TUOS Incl GST'!Q17 -> 0
B18: Low voltage large 2 rate* | C18: LVL2R* | E18: ='2018 DUOS Incl GST'!E18+'2018 TUOS Incl GST'!E18 -> 21.6458 | F18: ='2018 DUOS Incl GST'!F18+'2018 TUOS Incl GST'!F18 -> 12.496 | G18: ='2018 DUOS Incl GST'!G18+'2018 TUOS Incl GST'!G18 -> 9.9462 | H18: ='2018 DUOS Incl GST'!H18+'2018 TUOS Incl GST'!H18 -> 0 | I18: ='2018 DUOS Incl GST'!I18+'2018 TUOS Incl GST'!I18 -> 0 | J18: ='2018 DUOS Incl GST'!J18+'2018 TUOS Incl GST'!J18 -> 0 | K18: ='2018 DUOS Incl GST'!K18+'2018 TUOS Incl GST'!K18 -> 2.0471 | L18: ='2018 DUOS Incl GST'!L18+'2018 TUOS Incl GST'!L18 -> 0 | M18: ='2018 DUOS Incl GST'!M18+'2018 TUOS Incl GST'!M18 -> 0 | N18: ='2018 DUOS Incl GST'!N18+'2018 TUOS Incl GST'!N18 -> 0 | O18: ='2018 DUOS Incl GST'!O18+'2018 TUOS Incl GST'!O18 -> 0 | P18: ='2018 DUOS Incl GST'!P18+'2018 TUOS Incl GST'!P18 -> 0 | Q18: ='2018 DUOS Incl GST'!Q18+'2018 TUOS Incl GST'!Q18 -> 0
B19: Low voltage large KVA time of use | C19: LVkVATOU | E19: ='2018 DUOS Incl GST'!E19+'2018 TUOS Incl GST'!E19 -> 0 | F19: ='2018 DUOS Incl GST'!F19+'2018 TUOS Incl GST'!F19 -> 2.5388 | G19: ='2018 DUOS Incl GST'!G19+'2018 TUOS Incl GST'!G19 -> 2.1065 | H19: ='2018 DUOS Incl GST'!H19+'2018 TUOS Incl GST'!H19 -> 0 | I19: ='2018 DUOS Incl GST'!I19+'2018 TUOS Incl GST'!I19 -> 0 | J19: ='2018 DUOS Incl GST'!J19+'2018 TUOS Incl GST'!J19 -> 0 | K19: ='2018 DUOS Incl GST'!K19+'2018 TUOS Incl GST'!K19 -> 1.298 | L19: ='2018 DUOS Incl GST'!L19+'2018 TUOS Incl GST'!L19 -> 19.6625 | M19: ='2018 DUOS Incl GST'!M19+'2018 TUOS Incl GST'!M19 -> 28.8277 | N19: ='2018 DUOS Incl GST'!N19+'2018 TUOS Incl GST'!N19 -> 0 | O19: ='2018 DUOS Incl GST'!O19+'2018 TUOS Incl GST'!O19 -> 0 | P19: ='2018 DUOS Incl GST'!P19+'2018 TUOS Incl GST'!P19 -> 0 | Q19: ='2018 DUOS Incl GST'!Q19+'2018 TUOS Incl GST'!Q19 -> 0 | R19: >150 | S19: >400 | T19: 150
B20: Low voltage large KVA time of use - HOT* | C20: LVkVATOUH* | E20: ='2018 DUOS Incl GST'!E20+'2018 TUOS Incl GST'!E20 -> 0 | F20: ='2018 DUOS Incl GST'!F20+'2018 TUOS Incl GST'!F20 -> 0 | G20: ='2018 DUOS Incl GST'!G20+'2018 TUOS Incl GST'!G20 -> 0 | H20: ='2018 DUOS Incl GST'!H20+'2018 TUOS Incl GST'!H20 -> 0 | I20: ='2018 DUOS Incl GST'!I20+'2018 TUOS Incl GST'!I20 -> 0 | J20: ='2018 DUOS Incl GST'!J20+'2018 TUOS Incl GST'!J20 -> 0 | K20: ='2018 DUOS Incl GST'!K20+'2018 TUOS Incl GST'!K20 -> 0 | L20: ='2018 DUOS Incl GST'!L20+'2018 TUOS Incl GST'!L20 -> 0 | M20: ='2018 DUOS Incl GST'!M20+'2018 TUOS Incl GST'!M20 -> 0 | N20: ='2018 DUOS Incl GST'!N20+'2018 TUOS Incl GST'!N20 -> 0 | O20: ='2018 DUOS Incl GST'!O20+'2018 TUOS Incl GST'!O20 -> 0 | P20: ='2018 DUOS Incl GST'!P20+'2018 TUOS Incl GST'!P20 -> 0 | Q20: ='2018 DUOS Incl GST'!Q20+'2018 TUOS Incl GST'!Q20 -> 0 | T20: 150
B21: High voltage KVA time of use | C21: HVkVATOU | E21: ='2018 DUOS Incl GST'!E21+'2018 TUOS Incl GST'!E21 -> 0 | F21: ='2018 DUOS Incl GST'!F21+'2018 TUOS Incl GST'!F21 -> 1.6236 | G21: ='2018 DUOS Incl GST'!G21+'2018 TUOS Incl GST'!G21 -> 1.3761 | H21: ='2018 DUOS Incl GST'!H21+'2018 TUOS Incl GST'!H21 -> 0 | I21: ='2018 DUOS Incl GST'!I21+'2018 TUOS Incl GST'!I21 -> 0 | J21: ='2018 DUOS Incl GST'!J21+'2018 TUOS Incl GST'!J21 -> 0 | K21: ='2018 DUOS Incl GST'!K21+'2018 TUOS Incl GST'!K21 -> 0.8041 | L21: ='2018 DUOS Incl GST'!L21+'2018 TUOS Incl GST'!L21 -> 14.0844 | M21: ='2018 DUOS Incl GST'!M21+'2018 TUOS Incl GST'!M21 -> 17.842 | N21: ='2018 DUOS Incl GST'!N21+'2018 TUOS Incl GST'!N21 -> 0 | O21: ='2018 DUOS Incl GST'!O21+'2018 TUOS Incl GST'!O21 -> 0 | P21: ='2018 DUOS Incl GST'!P21+'2018 TUOS Incl GST'!P21 -> 0 | Q21: ='2018 DUOS Incl GST'!Q21+'2018 TUOS Incl GST'!Q21 -> 0 | R21: >150 | S21: >400 | T21: 1150
B22: High voltage KVA time of use - HOT* | C22: HVkVATOUH* | E22: ='2018 DUOS Incl GST'!E22+'2018 TUOS Incl GST'!E22 -> 0 | F22: ='2018 DUOS Incl GST'!F22+'2018 TUOS Incl GST'!F22 -> 0 | G22: ='2018 DUOS Incl GST'!G22+'2018 TUOS Incl GST'!G22 -> 0 | H22: ='2018 DUOS Incl GST'!H22+'2018 TUOS Incl GST'!H22 -> 0 | I22: ='2018 DUOS Incl GST'!I22+'2018 TUOS Incl GST'!I22 -> 0 | J22: ='2018 DUOS Incl GST'!J22+'2018 TUOS Incl GST'!J22 -> 0 | K22: ='2018 DUOS Incl GST'!K22+'2018 TUOS Incl GST'!K22 -> 0 | L22: ='2018 DUOS Incl GST'!L22+'2018 TUOS Incl GST'!L22 -> 0 | M22: ='2018 DUOS Incl GST'!M22+'2018 TUOS Incl GST'!M22 -> 0 | N22: ='2018 DUOS Incl GST'!N22+'2018 TUOS Incl GST'!N22 -> 0 | O22: ='2018 DUOS Incl GST'!O22+'2018 TUOS Incl GST'!O22 -> 0 | P22: ='2018 DUOS Incl GST'!P22+'2018 TUOS Incl GST'!P22 -> 0 | Q22: ='2018 DUOS Incl GST'!Q22+'2018 TUOS Incl GST'!Q22 -> 0 | T22: 1150
B23: Subtransmission KVA time of use* | C23: SubTkVATOU* | E23: ='2018 DUOS Incl GST'!E23+'2018 TUOS Incl GST'!E23 -> 0 | F23: ='2018 DUOS Incl GST'!F23+'2018 TUOS Incl GST'!F23 -> 0.9977 | G23: ='2018 DUOS Incl GST'!G23+'2018 TUOS Incl GST'!G23 -> 0.7898 | H23: ='2018 DUOS Incl GST'!H23+'2018 TUOS Incl GST'!H23 -> 0 | I23: ='2018 DUOS Incl GST'!I23+'2018 TUOS Incl GST'!I23 -> 0 | J23: ='2018 DUOS Incl GST'!J23+'2018 TUOS Incl GST'!J23 -> 0 | K23: ='2018 DUOS Incl GST'!K23+'2018 TUOS Incl GST'!K23 -> 0.3564 | L23: ='2018 DUOS Incl GST'!L23+'2018 TUOS Incl GST'!L23 -> 4.257 | M23: ='2018 DUOS Incl GST'!M23+'2018 TUOS Incl GST'!M23 -> 5.3977 | N23: ='2018 DUOS Incl GST'!N23+'2018 TUOS Incl GST'!N23 -> 0 | O23: ='2018 DUOS Incl GST'!O23+'2018 TUOS Incl GST'!O23 -> 0 | P23: ='2018 DUOS Incl GST'!P23+'2018 TUOS Incl GST'!P23 -> 0 | Q23: ='2018 DUOS Incl GST'!Q23+'2018 TUOS Incl GST'!Q23 -> 0 | T23: 11100
B24: Time of Day | C24: TOD | D24: F | E24: ='2018 DUOS Incl GST'!E24+'2018 TUOS Incl GST'!E24 -> 7.183 | F24: ='2018 DUOS Incl GST'!F24+'2018 TUOS Incl GST'!F24 -> 20.3951 | G24: ='2018 DUOS Incl GST'!G24+'2018 TUOS Incl GST'!G24 -> 12.8315 | H24: ='2018 DUOS Incl GST'!H24+'2018 TUOS Incl GST'!H24 -> 0 | I24: ='2018 DUOS Incl GST'!I24+'2018 TUOS Incl GST'!I24 -> 7.5207 | J24: ='2018 DUOS Incl GST'!J24+'2018 TUOS Incl GST'!J24 -> 5.929 | K24: ='2018 DUOS Incl GST'!K24+'2018 TUOS Incl GST'!K24 -> 3.3297 | L24: ='2018 DUOS Incl GST'!L24+'2018 TUOS Incl GST'!L24 -> 0 | M24: ='2018 DUOS Incl GST'!M24+'2018 TUOS Incl GST'!M24 -> 0 | N24: ='2018 DUOS Incl GST'!N24+'2018 TUOS Incl GST'!N24 -> 0 | O24: ='2018 DUOS Incl GST'!O24+'2018 TUOS Incl GST'!O24 -> 0 | P24: ='2018 DUOS Incl GST'!P24+'2018 TUOS Incl GST'!P24 -> 0 | Q24: ='2018 DUOS Incl GST'!Q24+'2018 TUOS Incl GST'!Q24 -> 0 | R24: NA | S24: <20
B25: Time of Use | C25: TOU | D25: F | E25: ='2018 DUOS Incl GST'!E25+'2018 TUOS Incl GST'!E25 -> 0 | F25: ='2018 DUOS Incl GST'!F25+'2018 TUOS Incl GST'!F25 -> 12.9338 | G25: ='2018 DUOS Incl GST'!G25+'2018 TUOS Incl GST'!G25 -> 7.513 | H25: ='2018 DUOS Incl GST'!H25+'2018 TUOS Incl GST'!H25 -> 0 | I25: ='2018 DUOS Incl GST'!I25+'2018 TUOS Incl GST'!I25 -> 0 | J25: ='2018 DUOS Incl GST'!J25+'2018 TUOS Incl GST'!J25 -> 0 | K25: ='2018 DUOS Incl GST'!K25+'2018 TUOS Incl GST'!K25 -> 3.1119 | L25: ='2018 DUOS Incl GST'!L25+'2018 TUOS Incl GST'!L25 -> 0 | M25: ='2018 DUOS Incl GST'!M25+'2018 TUOS Incl GST'!M25 -> 52.1675 | N25: ='2018 DUOS Incl GST'!N25+'2018 TUOS Incl GST'!N25 -> 0 | O25: ='2018 DUOS Incl GST'!O25+'2018 TUOS Incl GST'!O25 -> 0 | P25: ='2018 DUOS Incl GST'!P25+'2018 TUOS Incl GST'!P25 -> 0 | Q25: ='2018 DUOS Incl GST'!Q25+'2018 TUOS Incl GST'!Q25 -> 0 | R25: NA | S25: >20 & <160
B26: Time of Day 9pm off-peak | C26: TOD9 | D26: F | E26: ='2018 DUOS Incl GST'!E26+'2018 TUOS Incl GST'!E26 -> 7.4514 | F26: ='2018 DUOS Incl GST'!F26+'2018 TUOS Incl GST'!F26 -> 23.6665 | G26: ='2018 DUOS Incl GST'!G26+'2018 TUOS Incl GST'!G26 -> 16.0017 | H26: ='2018 DUOS Incl GST'!H26+'2018 TUOS Incl GST'!H26 -> 0 | I26: ='2018 DUOS Incl GST'!I26+'2018 TUOS Incl GST'!I26 -> 9.9374 | J26: ='2018 DUOS Incl GST'!J26+'2018 TUOS Incl GST'!J26 -> 8.5558 | K26: ='2018 DUOS Incl GST'!K26+'2018 TUOS Incl GST'!K26 -> 4.6123 | L26: ='2018 DUOS Incl GST'!L26+'2018 TUOS Incl GST'!L26 -> 0 | M26: ='2018 DUOS Incl GST'!M26+'2018 TUOS Incl GST'!M26 -> 0 | N26: ='2018 DUOS Incl GST'!N26+'2018 TUOS Incl GST'!N26 -> 0 | O26: ='2018 DUOS Incl GST'!O26+'2018 TUOS Incl GST'!O26 -> 0 | P26: ='2018 DUOS Incl GST'!P26+'2018 TUOS Incl GST'!P26 -> 0 | Q26: ='2018 DUOS Incl GST'!Q26+'2018 TUOS Incl GST'!Q26 -> 0 | R26: NA | S26: <20
B27: Time of Day Flexible | C27: TODFLEX | D27: F | E27: ='2018 DUOS Incl GST'!E27+'2018 TUOS Incl GST'!E27 -> 8.0245 | F27: ='2018 DUOS Incl GST'!F27+'2018 TUOS Incl GST'!F27 -> 22.704 | G27: ='2018 DUOS Incl GST'!G27+'2018 TUOS Incl GST'!G27 -> 14.3055 | H27: ='2018 DUOS Incl GST'!H27+'2018 TUOS Incl GST'!H27 -> 0 | I27: ='2018 DUOS Incl GST'!I27+'2018 TUOS Incl GST'!I27 -> 6.9751 | J27: ='2018 DUOS Incl GST'!J27+'2018 TUOS Incl GST'!J27 -> 6.7661 | K27: ='2018 DUOS Incl GST'!K27+'2018 TUOS Incl GST'!K27 -> 4.4099 | L27: ='2018 DUOS Incl GST'!L27+'2018 TUOS Incl GST'!L27 -> 0 | M27: ='2018 DUOS Incl GST'!M27+'2018 TUOS Incl GST'!M27 -> 0 | N27: ='2018 DUOS Incl GST'!N27+'2018 TUOS Incl GST'!N27 -> 0 | O27: ='2018 DUOS Incl GST'!O27+'2018 TUOS Incl GST'!O27 -> 0 | P27: ='2018 DUOS Incl GST'!P27+'2018 TUOS Incl GST'!P27 -> 0 | Q27: ='2018 DUOS Incl GST'!Q27+'2018 TUOS Incl GST'!Q27 -> 0 | R27: Residential Customer
B28: Low voltage KW 1 rate | C28: RESKW1R | D28: F | E28: ='2018 DUOS Incl GST'!E28+'2018 TUOS Incl GST'!E28 -> 0 | F28: ='2018 DUOS Incl GST'!F28+'2018 TUOS Incl GST'!F28 -> 3.6355 | G28: ='2018 DUOS Incl GST'!G28+'2018 TUOS Incl GST'!G28 -> 3.6355 | H28: ='2018 DUOS Incl GST'!H28+'2018 TUOS Incl GST'!H28 -> 3.6355 | I28: ='2018 DUOS Incl GST'!I28+'2018 TUOS Incl GST'!I28 -> 3.6355 | J28: ='2018 DUOS Incl GST'!J28+'2018 TUOS Incl GST'!J28 -> 3.6355 | K28: ='2018 DUOS Incl GST'!K28+'2018 TUOS Incl GST'!K28 -> 3.6355 | L28: ='2018 DUOS Incl GST'!L28+'2018 TUOS Incl GST'!L28 -> 0 | M28: ='2018 DUOS Incl GST'!M28+'2018 TUOS Incl GST'!M28 -> 0 | N28: ='2018 DUOS Incl GST'!N28+'2018 TUOS Incl GST'!N28 -> 33.6281 | O28: ='2018 DUOS Incl GST'!O28+'2018 TUOS Incl GST'!O28 -> 14.5178 | P28: ='2018 DUOS Incl GST'!P28+'2018 TUOS Incl GST'!P28 -> 0 | Q28: ='2018 DUOS Incl GST'!Q28+'2018 TUOS Incl GST'!Q28 -> 0 | R28: NA | S28: <20 | U28: 1.5
B29: Low Voltage Medium kW Time of Use (Opt-in) | C29: LVMKWTOU | D29: F | E29: ='2018 DUOS Incl GST'!E29+'2018 TUOS Incl GST'!E29 -> 0 | F29: ='2018 DUOS Incl GST'!F29+'2018 TUOS Incl GST'!F29 -> 4.8796 | G29: ='2018 DUOS Incl GST'!G29+'2018 TUOS Incl GST'!G29 -> 4.8796 | H29: ='2018 DUOS Incl GST'!H29+'2018 TUOS Incl GST'!H29 -> 4.8796 | I29: ='2018 DUOS Incl GST'!I29+'2018 TUOS Incl GST'!I29 -> 4.8796 | J29: ='2018 DUOS Incl GST'!J29+'2018 TUOS Incl GST'!J29 -> 4.8796 | K29: ='2018 DUOS Incl GST'!K29+'2018 TUOS Incl GST'!K29 -> 4.8796 | L29: ='2018 DUOS Incl GST'!L29+'2018 TUOS Incl GST'!L29 -> 0 | M29: ='2018 DUOS Incl GST'!M29+'2018 TUOS Incl GST'!M29 -> 0 | N29: ='2018 DUOS Incl GST'!N29+'2018 TUOS Incl GST'!N29 -> 40.359 | O29: ='2018 DUOS Incl GST'!O29+'2018 TUOS Incl GST'!O29 -> 26.906 | P29: ='2018 DUOS Incl GST'!P29+'2018 TUOS Incl GST'!P29 -> 0 | Q29: ='2018 DUOS Incl GST'!Q29+'2018 TUOS Incl GST'!Q29 -> 0 | R29: NA | S29: >20 & <400 | U29: 1.5
B30: Low Voltage Medium kW 1 rate (Mandatory) | C30: LVMKW1R | D30: F | E30: ='2018 DUOS Incl GST'!E30+'2018 TUOS Incl GST'!E30 -> 0 | F30: ='2018 DUOS Incl GST'!F30+'2018 TUOS Incl GST'!F30 -> 7.4646 | G30: ='2018 DUOS Incl GST'!G30+'2018 TUOS Incl GST'!G30 -> 7.4646 | H30: ='2018 DUOS Incl GST'!H30+'2018 TUOS Incl GST'!H30 -> 7.4646 | I30: ='2018 DUOS Incl GST'!I30+'2018 TUOS Incl GST'!I30 -> 7.4646 | J30: ='2018 DUOS Incl GST'!J30+'2018 TUOS Incl GST'!J30 -> 7.4646 | K30: ='2018 DUOS Incl GST'!K30+'2018 TUOS Incl GST'!K30 -> 7.4646 | L30: ='2018 DUOS Incl GST'!L30+'2018 TUOS Incl GST'!L30 -> 0 | M30: ='2018 DUOS Incl GST'!M30+'2018 TUOS Incl GST'!M30 -> 0 | N30: ='2018 DUOS Incl GST'!N30+'2018 TUOS Incl GST'!N30 -> 25.014 | O30: ='2018 DUOS Incl GST'!O30+'2018 TUOS Incl GST'!O30 -> 16.6749 | P30: ='2018 DUOS Incl GST'!P30+'2018 TUOS Incl GST'!P30 -> 0 | Q30: ='2018 DUOS Incl GST'!Q30+'2018 TUOS Incl GST'!Q30 -> 0 | R30: NA | S30: >40 & <400 | U30: 1.5
B33: * Tariff closed to premises not already taking supply under this tariff and new connections.
B34: ** Tariff only available in conjunction with the LVS1R tariff for new connections.
B35: Summer peak energy rates apply for period 1st November to 31st March (except TODFLEX which follows daylight savings periods) & RESKWTOU which applies from 1st December to 31st March.
B36: Non-summer peak energy rates apply for period 1st April to 31st October (except TODFLEX which follows non-daylight savings periods) & RESKWTOU which applies from 1st April to 30th November.
B37: PFIT (Premium Feed-In Tariff) is defined by an “F” added to the front of an existing distribution tariff ie. FTOD. The PFIT tariffs are closed to new connections.

Sheet PFIT TFIT Ex GST
A1: UED PFIT/TFIT pass through charge: 1 January 2018 (GST Exclusive)
A2: UED Network Tariff Description | B2: UED Tariff Code | C2: PFIT/TFIT Pass Through Charge (c/cust/day)
A3: Low voltage small 1 rate | B3: LVS1R | C3: 5.409
A4: Low voltage small 2 rate* | B4: LVS2R* | C4: 5.409
A5: Dedicated circuit** | B5: LVDed**
A6: Unmetered supplies | B6: UnMet
A7: Winter Energy Tariff* | B7: WET2Step* | C7: 5.409
A8: Reverse cycle airconditioning time of use* | B8: RCACkWTOU*
A9: Low voltage medium 1 rate | B9: LVM1R | C9: 5.409
A10: Low voltage medium 2 rate 5 day* | B10: LVM2R5D* | C10: 5.409
A11: Low voltage medium 2 rate 7 day* | B11: LVM2R7D* | C11: 5.409
A12: Low voltage KW time of use* | B12: LVkWTOU* | C12: 5.409
A13: Low voltage KW time of use - HOT* | B13: LVkWTOUH* | C13: 5.409
A14: Low voltage large 1 rate* | B14: LVL1R* | C14: 5.409
A15: Low voltage large 2 rate* | B15: LVL2R* | C15: 5.409
A16: Low voltage large KVA time of use | B16: LVkVATOU | C16: 5.409
A17: Low voltage large KVA time of use - HOT* | B17: LVkVATOUH*
A18: High voltage KVA time of use | B18: HVkVATOU | C18: 5.409
A19: High voltage KVA time of use - HOT* | B19: HVkVATOUH*
A20: Subtransmission KVA time of use* | B20: SubTkVATOU* | C20: 5.409
A21: Time of Day | B21: TOD | C21: 5.409
A22: Time of Use | B22: TOU | C22: 5.409
A23: Time of Day 9pm off-peak | B23: TOD9 | C23: 5.409
A24: Time of Day Flexible | B24: TODFLEX | C24: 5.409
A25: Low voltage KW 1 rate | B25: RESKW1R | C25: 5.409
A26: Low Voltage Medium kW Time of Use (Opt-in) | B26: LVMKWTOU | C26: 5.409
A27: Low Voltage Medium kW 1 rate (Mandatory) | B27: LVMKW1R | C27: 5.409
A29: * Tariff closed to premises not already taking supply under this tariff and new connections.

Sheet PFIT TFIT Incl GST
A1: UED PFIT/TFIT pass through charge: 1 January 2018 (GST Inclusive)
A2: UED Network Tariff Description | B2: UED Tariff Code | C2: PFIT/TFIT Pass Through Charge (c/cust/day)
A3: Low voltage small 1 rate | B3: LVS1R | C3: ='PFIT TFIT Ex GST'!C3*1.1 -> 5.9499
A4: Low voltage small 2 rate* | B4: LVS2R* | C4: ='PFIT TFIT Ex GST'!C4*1.1 -> 5.9499
A5: Dedicated circuit** | B5: LVDed**
A6: Unmetered supplies | B6: UnMet
A7: Winter Energy Tariff* | B7: WET2Step* | C7: ='PFIT TFIT Ex GST'!C7*1.1 -> 5.9499
A8: Reverse cycle airconditioning time of use* | B8: RCACkWTOU* | C8: ='PFIT TFIT Ex GST'!C8*1.1 -> 0
A9: Low voltage medium 1 rate | B9: LVM1R | C9: ='PFIT TFIT Ex GST'!C9*1.1 -> 5.9499
A10: Low voltage medium 2 rate 5 day* | B10: LVM2R5D* | C10: ='PFIT TFIT Ex GST'!C10*1.1 -> 5.9499
A11: Low voltage medium 2 rate 7 day* | B11: LVM2R7D* | C11: ='PFIT TFIT Ex GST'!C11*1.1 -> 5.9499
A12: Low voltage KW time of use* | B12: LVkWTOU* | C12: ='PFIT TFIT Ex GST'!C12*1.1 -> 5.9499
A13: Low voltage KW time of use - HOT* | B13: LVkWTOUH* | C13: ='PFIT TFIT Ex GST'!C13*1.1 -> 5.9499
A14: Low voltage large 1 rate* | B14: LVL1R* | C14: ='PFIT TFIT Ex GST'!C14*1.1 -> 5.9499
A15: Low voltage large 2 rate* | B15: LVL2R* | C15: ='PFIT TFIT Ex GST'!C15*1.1 -> 5.9499
A16: Low voltage large KVA time of use | B16: LVkVATOU | C16: ='PFIT TFIT Ex GST'!C16*1.1 -> 5.9499
A17: Low voltage large KVA time of use - HOT* | B17: LVkVATOUH* | C17: ='PFIT TFIT Ex GST'!C17*1.1 -> 0
A18: High voltage KVA time of use | B18: HVkVATOU | C18: ='PFIT TFIT Ex GST'!C18*1.1 -> 5.9499
A19: High voltage KVA time of use - HOT* | B19: HVkVATOUH* | C19: ='PFIT TFIT Ex GST'!C19*1.1 -> 0
A20: Subtransmission KVA time of use* | B20: SubTkVATOU* | C20: ='PFIT TFIT Ex GST'!C20*1.1 -> 5.9499
A21: Time of Day | B21: TOD | C21: ='PFIT TFIT Ex GST'!C21*1.1 -> 5.9499
A22: Time of Use | B22: TOU | C22: ='PFIT TFIT Ex GST'!C22*1.1 -> 5.9499
A23: Time of Day 9pm off-peak | B23: TOD9 | C23: ='PFIT TFIT Ex GST'!C23*1.1 -> 5.9499
A24: Time of Day Flexible | B24: TODFLEX | C24: ='PFIT TFIT Ex GST'!C24*1.1 -> 5.9499
A25: Low voltage KW 1 rate | B25: RESKW1R | C25: ='PFIT TFIT Ex GST'!C25*1.1 -> 5.9499
A26: Low Voltage Medium kW Time of Use (Opt-in) | B26: LVMKWTOU | C26: ='PFIT TFIT Ex GST'!C26*1.1 -> 5.9499
A27: Low Voltage Medium kW 1 rate (Mandatory) | B27: LVMKW1R | C27: ='PFIT TFIT Ex GST'!C27*1.1 -> 5.9499
A29: * Tariff closed to premises not already taking supply under this tariff and new connections.

Sheet Prescribed Ex GST
A1: 2018 Prescribed Metering Service Charges (GST Exclusive)
A3: Metering Data Services (Unmetered Supplies) | B3: $/light/annum
A4: Per light | B4: 1.347

Sheet Prescribed Incl GST
A1: 2018 Prescribed Metering Service Charges (GST Inclusive)
A3: Metering Data Services (Unmetered Supplies) | B3: $/light/annum
A4: Per light | B4: ='Prescribed Ex GST'!B4*1.1 -> 1.4817
